Workbook

Sheet Розрахунок на купівлю житла
L2: Калькулятор
L3: «МОЄ ЖИТЛО» – на придбання житла
E5: ячейки блакитногого кольору заповнюються Клієнтом виходячи з обраних умов кредитування
D7: Умови кредитування, обрані споживачем:
D8: Дата видачі кредиту: | K8: =TODAY() -> 2021-11-12 | AC8: =YEAR(K13) -> 2041 | AD8: =YEAR(K8) -> 2021 | AE8: =MONTH(K13) -> 11 | AF8: =MONTH(K8) -> 11
D9: Вартість предмету іпотеки, грн.: | K9: 1200000
D10: Перший внесок*: | K10: 0.3 | L10: *не менш як 30% вартості предмета іпотеки
D11: Сума кредиту, грн.: | K11: =K9*(100%-K10) -> 840000
D12: Срок кредитування, місяців | K12: 240 | L12: до 240 місяців
D13: Кінцева дата повернення кредиту: | K13: =K8+((K12/12)*365) -> 2041-11-07 | AC13: =AC8-AD8 -> 20 | AE13: =AE8-AF8 -> 0
D14: Порядок погашення кредиту, грн.: | K14: щомісяця по | L14: =CEILING(K11/K12,1) -> 3500 | M14: останній платіж | O14: =K11-(L14*(K12-1)) -> 3500
D15: Дата погашення кредиту та процентів: | K15: щомісяця | L15: =DAY(K8) -> 12 | M15: числа | AE15: =12+AE13 -> 12
D16: Процентна ставка (фіксована) перші 2 роки: | K16: 0.109 | L16: річних | AE16: =24+AE13 -> 24
D17: Індекс UIRD (12 міс. у гривні) станом на 31.05.2021 р.: | K17: 0.0814
D18: Маржа: | K18: 0.04
D19: Процентна ставка (плаваюча): | K19: =K17+K18 -> 0.1214 | L19: річних
D21: Платежі за додаткові та сукупні послуги:
D22: Разова комісія за видачу готівкових коштів: | K22: 0.007 | L22: від суми наданого кредиту | AD22: =IF(AC13=0,AE13,IF(AC13=1,AE15,IF(AC13=2,AE16,#REF!))) -> 
D23: Щомісячна комісія за проведення розрахунків: | K23: 0 | L23: від суми наданого кредиту | O23: =K11*K23 -> 0
D24: Щорічна комісія за проведення розрахунків: | K24: 0 | L24: від суми наданого кредиту
D25: Послуги нотаріуса | K25: 11100 | L25: грн.
D26: Послуги оцінювача | K26: 1000 | L26: грн.
D27: Страхування предмета іпотеки (щороку) | K27: 0.003 | L27: від вартості предмету іпотеки
D28: Страхування позичальника від нещасних випадків (щороку) | K28: 0.006 | L28: від залишку кредитної заборгованості
D29: Державне мито | K29: 0.011 | L29: від вартості предмету іпотеки
D30: Пенсійний збір | K30: 0.01 | L30: від вартості предмету іпотеки
V33: Дата розрахунку: | W33: =TEXT(K8,"DD.MM.YYYY")&" р." -> 12.11.2021 р.
D34: ТАБЛИЦЯ обчислення загальної вартості кредиту для споживача та реальної річної процентної ставки за договором про споживчий кредит
D36: № з/п | E36: Дата видачі кредиту/ дата платежу | F36: Кількість днів у розрахун- ковому періоді | I36: Чиста сума кредиту/ сума платежу за розрахунковий період, грн. | J36: Види платежів за кредитом | V36: Реальна річна процентна ставка, % | W36: Загальна вартість кредиту, грн
J37: сума кредиту за договором | K37: проценти за користування кредитом | L37: платежі за додаткові та супутні послуги
L38: банку | P38: кредитного посередника (за наявності) | R38: третіх осіб
A39: фільтр | L39: щомісячна комісія за проведення розрахунків | M39: розрахунково-касове обслуговування | N39: комісія за видачу готівкових коштів | O39: інші послуги банку | P39: комісійний збір | Q39: інша плата за послуги кредитного посередника | R39: послуги нотаріуса | S39: послуги оцінювача | T39: послуги страховика | U39: інші послуги третіх осіб
D40: 1 | E40: 2 | F40: 3 | G40: 4 | H40: 5 | I40: 4 | J40: 5 | K40: 6 | L40: 7 | M40: 8 | N40: 9 | O40: 10 | P40: 11 | Q40: 12 | R40: 13 | S40: 14 | T40: 15 | U40: 16 | V40: 17 | W40: 18
A41: =IF(B41<=$K$13,1,0) -> 1 | D41: 1 | E41: =K8 -> 2021-11-12 | F41: х | I41: =SUM(J41:U41) -> -788180 | J41: =-K11 -> -840000 | K41: х | N41: =K11*K22 -> 5880 | O41: =K11*K24 -> 0 | R41: =K25+(K29*K9)+(K30*K9) -> 36300 | S41: =K26 -> 1000 | T41: =K9*K27+(-J41*K28) -> 8640 | V41: х | W41: х
A42: 0 | E42: =EOMONTH(K8,0) -> 2021-11-30 | F42: =IF(A42=1,E42-E41,0) -> 0 | I42: =SUM(J42:O42) -> 0
A43: =IF(B43<=$K$12,1,0) -> 1 | B43: 1 | D43: =D41+1 -> 2 | E43: =MIN(DATE(YEAR(E41),MONTH(E41)+1,DAY($L$15)),$K$13) -> 2021-12-12 | F43: =E43-E41 -> 30 | G43: =EOMONTH(E41,0)-E41 -> 18 | H43: =E43-EOMONTH(E41,0) -> 12 | I43: =SUM(J43:U43) -> 11025.48 | J43: =L14 -> 3500 | K43: =ROUND($K$11*(($K$16/(IF(ROUND(YEAR(E41)/4,0)-YEAR(E41)/4=0,366,365)))*G43)+$K$11*(($K$16/(IF(ROUND(YEAR(E43)/4,0)-YEAR(E43)/4=0,366,365)))*H43),2) -> 7525.48 | L43: =IF(A43=1,IF(AND(YEAR($K$13)=YEAR(EDATE(E42,1)),MONTH($K$13)=MONTH(EDATE(E42,1))),$O$23-$O$46,$O$23),0) -> 0 | V43: х | W43: х
A44: 1 | B44: =B43+1 -> 2 | D44: 3 | E44: =IF(AND(YEAR($K$13)=YEAR(EDATE(E43,1)),MONTH($K$13)=MONTH(EDATE(E43,1))),$K$13,EDATE(E43,1)) -> 2022-01-12 | F44: =IF(A44=1,E44-E43,0) -> 31 | G44: =EOMONTH(E43,0)-E43 -> 19 | H44: =E44-EOMONTH(E43,0) -> 12 | I44: =SUM(J44:U44) -> 11243.93 | J44: =IF(B44<$K$12,$L$14,-$J$41-SUM($J$43:J43)) -> 3500 | K44: =ROUND(($K$11-SUM($J$43:J43))*(($K$16/(IF(ROUND(YEAR(E43)/4,0)-YEAR(E43)/4=0,366,365)))*G44)+($K$11-SUM($J$43:J43))*(($K$16/(IF(ROUND(YEAR(E44)/4,0)-YEAR(E44)/4=0,366,365)))*H44),2) -> 7743.93 | L44: 0 | V44: х | W44: х
A45: 1 | B45: 3 | D45: 4 | E45: =IF(AND(YEAR($K$13)=YEAR(EDATE(E44,1)),MONTH($K$13)=MONTH(EDATE(E44,1))),$K$13,EDATE(E44,1)) -> 2022-02-12 | F45: 31 | G45: =EOMONTH(E44,0)-E44 -> 19 | H45: =E45-EOMONTH(E44,0) -> 12 | I45: 11211.53 | J45: =IF(B45<$K$12,$L$14,-$J$41-SUM($J$43:J44)) -> 3500 | K45: =ROUND(($K$11-SUM($J$43:J44))*(($K$16/(IF(ROUND(YEAR(E44)/4,0)-YEAR(E44)/4=0,366,365)))*G45)+($K$11-SUM($J$43:J44))*(($K$16/(IF(ROUND(YEAR(E45)/4,0)-YEAR(E45)/4=0,366,365)))*H45),2) -> 7711.53 | L45: 0 | V45: х | W45: х
A46: 1 | B46: 4 | D46: 5 | E46: 2022-03-12 | F46: 28 | G46: 16 | H46: 12 | I46: 10435.98 | J46: =IF(B46<$K$12,$L$14,-$J$41-SUM($J$43:J45)) -> 3500 | K46: =ROUND(($K$11-SUM($J$43:J45))*(($K$16/(IF(ROUND(YEAR(E45)/4,0)-YEAR(E45)/4=0,366,365)))*G46)+($K$11-SUM($J$43:J45))*(($K$16/(IF(ROUND(YEAR(E46)/4,0)-YEAR(E46)/4=0,366,365)))*H46),2) -> 6935.98 | L46: 0 | V46: х | W46: х
A47: 1 | B47: 5 | D47: 6 | E47: 2022-04-12 | F47: 31 | G47: 19 | H47: 12 | I47: 11146.72 | J47: =IF(B47<$K$12,$L$14,-$J$41-SUM($J$43:J46)) -> 3500 | K47: =ROUND(($K$11-SUM($J$43:J46))*(($K$16/(IF(ROUND(YEAR(E46)/4,0)-YEAR(E46)/4=0,366,365)))*G47)+($K$11-SUM($J$43:J46))*(($K$16/(IF(ROUND(YEAR(E47)/4,0)-YEAR(E47)/4=0,366,365)))*H47),2) -> 7646.72 | L47: 0 | V47: х | W47: х
A48: 1 | B48: 6 | D48: 7 | E48: 2022-05-12 | F48: 30 | G48: 18 | H48: 12 | I48: 10868.7 | J48: =IF(B48<$K$12,$L$14,-$J$41-SUM($J$43:J47)) -> 3500 | K48: =ROUND(($K$11-SUM($J$43:J47))*(($K$16/(IF(ROUND(YEAR(E47)/4,0)-YEAR(E47)/4=0,366,365)))*G48)+($K$11-SUM($J$43:J47))*(($K$16/(IF(ROUND(YEAR(E48)/4,0)-YEAR(E48)/4=0,366,365)))*H48),2) -> 7368.7 | L48: 0 | V48: х | W48: х
A49: 1 | B49: 7 | D49: 8 | E49: 2022-06-12 | F49: 31 | G49: 19 | H49: 12 | I49: 11081.92 | J49: =IF(B49<$K$12,$L$14,-$J$41-SUM($J$43:J48)) -> 3500 | K49: =ROUND(($K$11-SUM($J$43:J48))*(($K$16/(IF(ROUND(YEAR(E48)/4,0)-YEAR(E48)/4=0,366,365)))*G49)+($K$11-SUM($J$43:J48))*(($K$16/(IF(ROUND(YEAR(E49)/4,0)-YEAR(E49)/4=0,366,365)))*H49),2) -> 7581.92 | L49: 0 | V49: х | W49: х
A50: 1 | B50: 8 | D50: 9 | E50: 2022-07-12 | F50: 30 | G50: 18 | H50: 12 | I50: 10805.99 | J50: =IF(B50<$K$12,$L$14,-$J$41-SUM($J$43:J49)) -> 3500 | K50: =ROUND(($K$11-SUM($J$43:J49))*(($K$16/(IF(ROUND(YEAR(E49)/4,0)-YEAR(E49)/4=0,366,365)))*G50)+($K$11-SUM($J$43:J49))*(($K$16/(IF(ROUND(YEAR(E50)/4,0)-YEAR(E50)/4=0,366,365)))*H50),2) -> 7305.99 | L50: 0 | V50: х | W50: х
A51: 1 | B51: 9 | D51: 10 | E51: 2022-08-12 | F51: 31 | G51: 19 | H51: 12 | I51: 11017.12 | J51: =IF(B51<$K$12,$L$14,-$J$41-SUM($J$43:J50)) -> 3500 | K51: =ROUND(($K$11-SUM($J$43:J50))*(($K$16/(IF(ROUND(YEAR(E50)/4,0)-YEAR(E50)/4=0,366,365)))*G51)+($K$11-SUM($J$43:J50))*(($K$16/(IF(ROUND(YEAR(E51)/4,0)-YEAR(E51)/4=0,366,365)))*H51),2) -> 7517.12 | L51: 0 | V51: х | W51: х
A52: 1 | B52: 10 | D52: 11 | E52: 2022-09-12 | F52: 31 | G52: 19 | H52: 12 | I52: 10984.72 | J52: =IF(B52<$K$12,$L$14,-$J$41-SUM($J$43:J51)) -> 3500 | K52: =ROUND(($K$11-SUM($J$43:J51))*(($K$16/(IF(ROUND(YEAR(E51)/4,0)-YEAR(E51)/4=0,366,365)))*G52)+($K$11-SUM($J$43:J51))*(($K$16/(IF(ROUND(YEAR(E52)/4,0)-YEAR(E52)/4=0,366,365)))*H52),2) -> 7484.72 | L52: 0 | V52: х | W52: х
A53: 1 | B53: 11 | D53: 12 | E53: 2022-10-12 | F53: 30 | G53: 18 | H53: 12 | I53: 10711.92 | J53: =IF(B53<$K$12,$L$14,-$J$41-SUM($J$43:J52)) -> 3500 | K53: =ROUND(($K$11-SUM($J$43:J52))*(($K$16/(IF(ROUND(YEAR(E52)/4,0)-YEAR(E52)/4=0,366,365)))*G53)+($K$11-SUM($J$43:J52))*(($K$16/(IF(ROUND(YEAR(E53)/4,0)-YEAR(E53)/4=0,366,365)))*H53),2) -> 7211.92 | L53: 0 | V53: х | W53: х
A54: 1 | B54: 12 | D54: 13 | E54: 2022-11-12 | F54: 31 | G54: 19 | H54: 12 | I54: =SUM(J54:U54) -> 19328.91 | J54: =IF(B54<$K$12,$L$14,-$J$41-SUM($J$43:J53)) -> 3500 | K54: =ROUND(($K$11-SUM($J$43:J53))*(($K$16/(IF(ROUND(YEAR(E53)/4,0)-YEAR(E53)/4=0,366,365)))*G54)+($K$11-SUM($J$43:J53))*(($K$16/(IF(ROUND(YEAR(E54)/4,0)-YEAR(E54)/4=0,366,365)))*H54),2) -> 7419.91 | L54: 0 | O54: =IF(B54<$K$12,$K$11*$K$24,0) -> 0 | T54: =IF(B54<$K$12,$K$9*$K$27,0)+(-SUM(J41:J53)*K28) -> 8409 | V54: х | W54: х
A55: 1 | B55: 13 | D55: 14 | E55: 2022-12-12 | F55: 30 | G55: 18 | H55: 12 | I55: =SUM(J55:U55) -> 10649.21 | J55: =IF(B55<$K$12,$L$14,-$J$41-SUM($J$43:J54)) -> 3500 | K55: =ROUND(($K$11-SUM($J$43:J54))*(($K$16/(IF(ROUND(YEAR(E54)/4,0)-YEAR(E54)/4=0,366,365)))*G55)+($K$11-SUM($J$43:J54))*(($K$16/(IF(ROUND(YEAR(E55)/4,0)-YEAR(E55)/4=0,366,365)))*H55),2) -> 7149.21 | L55: 0 | V55: х | W55: х
A56: 1 | B56: 14 | D56: 15 | E56: 2023-01-12 | F56: 31 | G56: 19 | H56: 12 | I56: 10855.11 | J56: =IF(B56<$K$12,$L$14,-$J$41-SUM($J$43:J55)) -> 3500 | K56: =ROUND(($K$11-SUM($J$43:J55))*(($K$16/(IF(ROUND(YEAR(E55)/4,0)-YEAR(E55)/4=0,366,365)))*G56)+($K$11-SUM($J$43:J55))*(($K$16/(IF(ROUND(YEAR(E56)/4,0)-YEAR(E56)/4=0,366,365)))*H56),2) -> 7355.11 | L56: 0 | V56: х | W56: х
A57: 1 | B57: 15 | D57: 16 | E57: 2023-02-12 | F57: 31 | G57: 19 | H57: 12 | I57: 10822.71 | J57: =IF(B57<$K$12,$L$14,-$J$41-SUM($J$43:J56)) -> 3500 | K57: =ROUND(($K$11-SUM($J$43:J56))*(($K$16/(IF(ROUND(YEAR(E56)/4,0)-YEAR(E56)/4=0,366,365)))*G57)+($K$11-SUM($J$43:J56))*(($K$16/(IF(ROUND(YEAR(E57)/4,0)-YEAR(E57)/4=0,366,365)))*H57),2) -> 7322.71 | L57: 0 | V57: х | W57: х
A58: 1 | B58: 16 | D58: 17 | E58: 2023-03-12 | F58: 28 | G58: 16 | H58: 12 | I58: 10084.79 | J58: =IF(B58<$K$12,$L$14,-$J$41-SUM($J$43:J57)) -> 3500 | K58: =ROUND(($K$11-SUM($J$43:J57))*(($K$16/(IF(ROUND(YEAR(E57)/4,0)-YEAR(E57)/4=0,366,365)))*G58)+($K$11-SUM($J$43:J57))*(($K$16/(IF(ROUND(YEAR(E58)/4,0)-YEAR(E58)/4=0,366,365)))*H58),2) -> 6584.79 | L58: 0 | V58: х | W58: х
A59: 1 | B59: 17 | D59: 18 | E59: 2023-04-12 | F59: 31 | G59: 19 | H59: 12 | I59: 10757.91 | J59: =IF(B59<$K$12,$L$14,-$J$41-SUM($J$43:J58)) -> 3500 | K59: =ROUND(($K$11-SUM($J$43:J58))*(($K$16/(IF(ROUND(YEAR(E58)/4,0)-YEAR(E58)/4=0,366,365)))*G59)+($K$11-SUM($J$43:J58))*(($K$16/(IF(ROUND(YEAR(E59)/4,0)-YEAR(E59)/4=0,366,365)))*H59),2) -> 7257.91 | L59: 0 | V59: х | W59: х
A60: 1 | B60: =B59+1 -> 18 | D60: 19 | E60: 2023-05-12 | F60: 30 | G60: 18 | H60: 12 | I60: 10492.42 | J60: =IF(B60<$K$12,$L$14,-$J$41-SUM($J$43:J59)) -> 3500 | K60: =ROUND(($K$11-SUM($J$43:J59))*(($K$16/(IF(ROUND(YEAR(E59)/4,0)-YEAR(E59)/4=0,366,365)))*G60)+($K$11-SUM($J$43:J59))*(($K$16/(IF(ROUND(YEAR(E60)/4,0)-YEAR(E60)/4=0,366,365)))*H60),2) -> 6992.42 | L60: 0 | V60: х | W60: х
A61: 1 | B61: 19 | D61: 20 | E61: 2023-06-12 | F61: 31 | G61: 19 | H61: 12 | I61: 10693.1 | J61: =IF(B61<$K$12,$L$14,-$J$41-SUM($J$43:J60)) -> 3500 | K61: =ROUND(($K$11-SUM($J$43:J60))*(($K$16/(IF(ROUND(YEAR(E60)/4,0)-YEAR(E60)/4=0,366,365)))*G61)+($K$11-SUM($J$43:J60))*(($K$16/(IF(ROUND(YEAR(E61)/4,0)-YEAR(E61)/4=0,366,365)))*H61),2) -> 7193.1 | L61: 0 | V61: х | W61: х
A62: 1 | B62: 20 | D62: 21 | E62: 2023-07-12 | F62: 30 | G62: 18 | H62: 12 | I62: 10429.71 | J62: =IF(B62<$K$12,$L$14,-$J$41-SUM($J$43:J61)) -> 3500 | K62: =ROUND(($K$11-SUM($J$43:J61))*(($K$16/(IF(ROUND(YEAR(E61)/4,0)-YEAR(E61)/4=0,366,365)))*G62)+($K$11-SUM($J$43:J61))*(($K$16/(IF(ROUND(YEAR(E62)/4,0)-YEAR(E62)/4=0,366,365)))*H62),2) -> 6929.71 | L62: 0 | V62: х | W62: х
A63: 1 | B63: 21 | D63: 22 | E63: 2023-08-12 | F63: 31 | G63: 19 | H63: 12 | I63: 10628.3 | J63: =IF(B63<$K$12,$L$14,-$J$41-SUM($J$43:J62)) -> 3500 | K63: =ROUND(($K$11-SUM($J$43:J62))*(($K$16/(IF(ROUND(YEAR(E62)/4,0)-YEAR(E62)/4=0,366,365)))*G63)+($K$11-SUM($J$43:J62))*(($K$16/(IF(ROUND(YEAR(E63)/4,0)-YEAR(E63)/4=0,366,365)))*H63),2) -> 7128.3 | L63: 0 | V63: х | W63: х
A64: 1 | B64: 22 | D64: 23 | E64: 2023-09-12 | F64: 31 | G64: 19 | H64: 12 | I64: 10595.9 | J64: =IF(B64<$K$12,$L$14,-$J$41-SUM($J$43:J63)) -> 3500 | K64: =ROUND(($K$11-SUM($J$43:J63))*(($K$16/(IF(ROUND(YEAR(E63)/4,0)-YEAR(E63)/4=0,366,365)))*G64)+($K$11-SUM($J$43:J63))*(($K$16/(IF(ROUND(YEAR(E64)/4,0)-YEAR(E64)/4=0,366,365)))*H64),2) -> 7095.9 | L64: 0 | V64: х | W64: х
A65: 1 | B65: 23 | D65: 24 | E65: 2023-10-12 | F65: 30 | G65: 18 | H65: 12 | I65: 10335.64 | J65: =IF(B65<$K$12,$L$14,-$J$41-SUM($J$43:J64)) -> 3500 | K65: =ROUND(($K$11-SUM($J$43:J64))*(($K$16/(IF(ROUND(YEAR(E64)/4,0)-YEAR(E64)/4=0,366,365)))*G65)+($K$11-SUM($J$43:J64))*(($K$16/(IF(ROUND(YEAR(E65)/4,0)-YEAR(E65)/4=0,366,365)))*H65),2) -> 6835.64 | L65: 0 | V65: х | W65: х
A66: 1 | B66: 24 | D66: 25 | E66: 2023-11-12 | F66: 31 | G66: 19 | H66: 12 | I66: =SUM(J66:U66) -> 18688.1 | J66: =IF(B66<$K$12,$L$14,-$J$41-SUM($J$43:J65)) -> 3500 | K66: =ROUND(($K$11-SUM($J$43:J65))*(($K$16/(IF(ROUND(YEAR(E65)/4,0)-YEAR(E65)/4=0,366,365)))*G66)+($K$11-SUM($J$43:J65))*(($K$16/(IF(ROUND(YEAR(E66)/4,0)-YEAR(E66)/4=0,366,365)))*H66),2) -> 7031.1 | L66: 0 | O66: =IF(B66<$K$12,$K$11*$K$24,0) -> 0 | T66: =IF(B66<$K$12,$K$9*$K$27,0)+(-SUM(J41:J65)*K28) -> 8157 | V66: х | W66: х
A67: 1 | B67: 25 | D67: 26 | E67: 2023-12-12 | F67: 30 | G67: 18 | H67: 12 | I67: 11043.43 | J67: =IF(B67<$K$12,$L$14,-$J$41-SUM($J$43:J66)) -> 3500 | K67: =ROUND(($K$11-SUM($J$43:J66))*(($K$19/(IF(ROUND(YEAR(E66)/4,0)-YEAR(E66)/4=0,366,365)))*G67)+($K$11-SUM($J$43:J66))*(($K$19/(IF(ROUND(YEAR(E67)/4,0)-YEAR(E67)/4=0,366,365)))*H67),2) -> 7543.43 | L67: 0 | V67: х | W67: х
A68: 1 | B68: 26 | D68: 27 | E68: 2024-01-12 | F68: 31 | G68: 19 | H68: 12 | I68: 11250.58 | J68: =IF(B68<$K$12,$L$14,-$J$41-SUM($J$43:J67)) -> 3500 | K68: =ROUND(($K$11-SUM($J$43:J67))*(($K$19/(IF(ROUND(YEAR(E67)/4,0)-YEAR(E67)/4=0,366,365)))*G68)+($K$11-SUM($J$43:J67))*(($K$19/(IF(ROUND(YEAR(E68)/4,0)-YEAR(E68)/4=0,366,365)))*H68),2) -> 7750.58 | L68: 0 | V68: х | W68: х
A69: 1 | B69: 27 | D69: 28 | E69: 2024-02-12 | F69: 31 | G69: 19 | H69: 12 | I69: 11201.6 | J69: =IF(B69<$K$12,$L$14,-$J$41-SUM($J$43:J68)) -> 3500 | K69: =ROUND(($K$11-SUM($J$43:J68))*(($K$19/(IF(ROUND(YEAR(E68)/4,0)-YEAR(E68)/4=0,366,365)))*G69)+($K$11-SUM($J$43:J68))*(($K$19/(IF(ROUND(YEAR(E69)/4,0)-YEAR(E69)/4=0,366,365)))*H69),2) -> 7701.6 | L69: 0 | V69: х | W69: х
A70: 1 | B70: 28 | D70: 29 | E70: 2024-03-12 | F70: 29 | G70: 17 | H70: 12 | I70: 10671.06 | J70: =IF(B70<$K$12,$L$14,-$J$41-SUM($J$43:J69)) -> 3500 | K70: =ROUND(($K$11-SUM($J$43:J69))*(($K$19/(IF(ROUND(YEAR(E69)/4,0)-YEAR(E69)/4=0,366,365)))*G70)+($K$11-SUM($J$43:J69))*(($K$19/(IF(ROUND(YEAR(E70)/4,0)-YEAR(E70)/4=0,366,365)))*H70),2) -> 7171.06 | L70: 0 | V70: х | W70: х
A71: 1 | B71: 29 | D71: 30 | E71: 2024-04-12 | F71: 31 | G71: 19 | H71: 12 | I71: 11129.63 | J71: =IF(B71<$K$12,$L$14,-$J$41-SUM($J$43:J70)) -> 3500 | K71: =ROUND(($K$11-SUM($J$43:J70))*(($K$19/(IF(ROUND(YEAR(E70)/4,0)-YEAR(E70)/4=0,366,365)))*G71)+($K$11-SUM($J$43:J70))*(($K$19/(IF(ROUND(YEAR(E71)/4,0)-YEAR(E71)/4=0,366,365)))*H71),2) -> 7629.63 | L71: 0 | V71: х | W71: х
A72: 1 | B72: 30 | D72: 31 | E72: 2024-05-12 | F72: 30 | G72: 18 | H72: 12 | I72: 10848.68 | J72: =IF(B72<$K$12,$L$14,-$J$41-SUM($J$43:J71)) -> 3500 | K72: =ROUND(($K$11-SUM($J$43:J71))*(($K$19/(IF(ROUND(YEAR(E71)/4,0)-YEAR(E71)/4=0,366,365)))*G72)+($K$11-SUM($J$43:J71))*(($K$19/(IF(ROUND(YEAR(E72)/4,0)-YEAR(E72)/4=0,366,365)))*H72),2) -> 7348.68 | L72: 0 | V72: х | W72: х
A73: 1 | B73: 31 | D73: 32 | E73: 2024-06-12 | F73: 31 | G73: 19 | H73: 12 | I73: 11057.65 | J73: =IF(B73<$K$12,$L$14,-$J$41-SUM($J$43:J72)) -> 3500 | K73: =ROUND(($K$11-SUM($J$43:J72))*(($K$19/(IF(ROUND(YEAR(E72)/4,0)-YEAR(E72)/4=0,366,365)))*G73)+($K$11-SUM($J$43:J72))*(($K$19/(IF(ROUND(YEAR(E73)/4,0)-YEAR(E73)/4=0,366,365)))*H73),2) -> 7557.65 | L73: 0 | V73: х | W73: х
A74: 1 | B74: 32 | D74: 33 | E74: 2024-07-12 | F74: 30 | G74: 18 | H74: 12 | I74: 10779.02 | J74: =IF(B74<$K$12,$L$14,-$J$41-SUM($J$43:J73)) -> 3500 | K74: =ROUND(($K$11-SUM($J$43:J73))*(($K$19/(IF(ROUND(YEAR(E73)/4,0)-YEAR(E73)/4=0,366,365)))*G74)+($K$11-SUM($J$43:J73))*(($K$19/(IF(ROUND(YEAR(E74)/4,0)-YEAR(E74)/4=0,366,365)))*H74),2) -> 7279.02 | L74: 0 | V74: х | W74: х
A75: 1 | B75: 33 | D75: 34 | E75: 2024-08-12 | F75: 31 | G75: 19 | H75: 12 | I75: 10985.67 | J75: =IF(B75<$K$12,$L$14,-$J$41-SUM($J$43:J74)) -> 3500 | K75: =ROUND(($K$11-SUM($J$43:J74))*(($K$19/(IF(ROUND(YEAR(E74)/4,0)-YEAR(E74)/4=0,366,365)))*G75)+($K$11-SUM($J$43:J74))*(($K$19/(IF(ROUND(YEAR(E75)/4,0)-YEAR(E75)/4=0,366,365)))*H75),2) -> 7485.67 | L75: 0 | V75: х | W75: х
A76: 1 | B76: =B75+1 -> 34 | D76: 35 | E76: 2024-09-12 | F76: =IF(A76=1,E76-E75,0) -> 31 | G76: 19 | H76: 12 | I76: 10949.68 | J76: =IF(B76<$K$12,$L$14,-$J$41-SUM($J$43:J75)) -> 3500 | K76: =ROUND(($K$11-SUM($J$43:J75))*(($K$19/(IF(ROUND(YEAR(E75)/4,0)-YEAR(E75)/4=0,366,365)))*G76)+($K$11-SUM($J$43:J75))*(($K$19/(IF(ROUND(YEAR(E76)/4,0)-YEAR(E76)/4=0,366,365)))*H76),2) -> 7449.68 | L76: 0 | V76: х | W76: х
A77: 1 | B77: 35 | D77: 36 | E77: 2024-10-12 | F77: 30 | G77: 18 | H77: 12 | I77: 10674.54 | J77: =IF(B77<$K$12,$L$14,-$J$41-SUM($J$43:J76)) -> 3500 | K77: =ROUND(($K$11-SUM($J$43:J76))*(($K$19/(IF(ROUND(YEAR(E76)/4,0)-YEAR(E76)/4=0,366,365)))*G77)+($K$11-SUM($J$43:J76))*(($K$19/(IF(ROUND(YEAR(E77)/4,0)-YEAR(E77)/4=0,366,365)))*H77),2) -> 7174.54 | L77: 0 | V77: х | W77: х
A78: 1 | B78: 36 | D78: 37 | E78: 2024-11-12 | F78: 31 | G78: 19 | H78: 12 | I78: 18782.7 | J78: =IF(B78<$K$12,$L$14,-$J$41-SUM($J$43:J77)) -> 3500 | K78: =ROUND(($K$11-SUM($J$43:J77))*(($K$19/(IF(ROUND(YEAR(E77)/4,0)-YEAR(E77)/4=0,366,365)))*G78)+($K$11-SUM($J$43:J77))*(($K$19/(IF(ROUND(YEAR(E78)/4,0)-YEAR(E78)/4=0,366,365)))*H78),2) -> 7377.7 | L78: 0 | O78: =IF(B78<$K$12,$K$11*$K$24,0) -> 0 | T78: =IF(B78<$K$12,$K$9*$K$27,0)+(-SUM(J41:J77)*K28) -> 7905 | V78: х | W78: х
A79: 1 | B79: 37 | D79: 38 | E79: 2024-12-12 | F79: 30 | G79: =EOMONTH(E78,0)-E78 -> 18 | H79: =E79-EOMONTH(E78,0) -> 12 | I79: 10604.89 | J79: =IF(B79<$K$12,$L$14,-$J$41-SUM($J$43:J78)) -> 3500 | K79: =ROUND(($K$11-SUM($J$43:J78))*(($K$19/(IF(ROUND(YEAR(E78)/4,0)-YEAR(E78)/4=0,366,365)))*G79)+($K$11-SUM($J$43:J78))*(($K$19/(IF(ROUND(YEAR(E79)/4,0)-YEAR(E79)/4=0,366,365)))*H79),2) -> 7104.89 | L79: 0 | V79: х | W79: х
A80: 1 | B80: 38 | D80: 39 | E80: 2025-01-12 | F80: 31 | G80: 19 | H80: 12 | I80: 10813.47 | J80: =IF(B80<$K$12,$L$14,-$J$41-SUM($J$43:J79)) -> 3500 | K80: =ROUND(($K$11-SUM($J$43:J79))*(($K$19/(IF(ROUND(YEAR(E79)/4,0)-YEAR(E79)/4=0,366,365)))*G80)+($K$11-SUM($J$43:J79))*(($K$19/(IF(ROUND(YEAR(E80)/4,0)-YEAR(E80)/4=0,366,365)))*H80),2) -> 7313.47 | L80: 0 | V80: х | W80: х
A81: 1 | B81: 39 | D81: 40 | E81: 2025-02-12 | F81: 31 | G81: 19 | H81: 12 | I81: 10789.65 | J81: =IF(B81<$K$12,$L$14,-$J$41-SUM($J$43:J80)) -> 3500 | K81: =ROUND(($K$11-SUM($J$43:J80))*(($K$19/(IF(ROUND(YEAR(E80)/4,0)-YEAR(E80)/4=0,366,365)))*G81)+($K$11-SUM($J$43:J80))*(($K$19/(IF(ROUND(YEAR(E81)/4,0)-YEAR(E81)/4=0,366,365)))*H81),2) -> 7289.65 | L81: 0 | V81: х | W81: х
A82: 1 | B82: 40 | D82: 41 | E82: 2025-03-12 | F82: 28 | G82: 16 | H82: 12 | I82: 10051.61 | J82: =IF(B82<$K$12,$L$14,-$J$41-SUM($J$43:J81)) -> 3500 | K82: =ROUND(($K$11-SUM($J$43:J81))*(($K$19/(IF(ROUND(YEAR(E81)/4,0)-YEAR(E81)/4=0,366,365)))*G82)+($K$11-SUM($J$43:J81))*(($K$19/(IF(ROUND(YEAR(E82)/4,0)-YEAR(E82)/4=0,366,365)))*H82),2) -> 6551.61 | L82: 0 | V82: х | W82: х
A83: 1 | B83: 41 | D83: 42 | E83: 2025-04-12 | F83: 31 | G83: 19 | H83: 12 | I83: 10717.48 | J83: =IF(B83<$K$12,$L$14,-$J$41-SUM($J$43:J82)) -> 3500 | K83: =ROUND(($K$11-SUM($J$43:J82))*(($K$19/(IF(ROUND(YEAR(E82)/4,0)-YEAR(E82)/4=0,366,365)))*G83)+($K$11-SUM($J$43:J82))*(($K$19/(IF(ROUND(YEAR(E83)/4,0)-YEAR(E83)/4=0,366,365)))*H83),2) -> 7217.48 | L83: 0 | V83: х | W83: х
A84: 1 | B84: 42 | D84: 43 | E84: 2025-05-12 | F84: 30 | G84: 18 | H84: 12 | I84: 10449.73 | J84: =IF(B84<$K$12,$L$14,-$J$41-SUM($J$43:J83)) -> 3500 | K84: =ROUND(($K$11-SUM($J$43:J83))*(($K$19/(IF(ROUND(YEAR(E83)/4,0)-YEAR(E83)/4=0,366,365)))*G84)+($K$11-SUM($J$43:J83))*(($K$19/(IF(ROUND(YEAR(E84)/4,0)-YEAR(E84)/4=0,366,365)))*H84),2) -> 6949.73 | L84: 0 | V84: х | W84: х
A85: 1 | B85: 43 | D85: 44 | E85: 2025-06-12 | F85: 31 | G85: 19 | H85: 12 | I85: 10645.3 | J85: =IF(B85<$K$12,$L$14,-$J$41-SUM($J$43:J84)) -> 3500 | K85: =ROUND(($K$11-SUM($J$43:J84))*(($K$19/(IF(ROUND(YEAR(E84)/4,0)-YEAR(E84)/4=0,366,365)))*G85)+($K$11-SUM($J$43:J84))*(($K$19/(IF(ROUND(YEAR(E85)/4,0)-YEAR(E85)/4=0,366,365)))*H85),2) -> 7145.3 | L85: 0 | V85: х | W85: х
A86: 1 | B86: 44 | D86: 45 | E86: 2025-07-12 | F86: 30 | G86: 18 | H86: 12 | I86: 10379.89 | J86: =IF(B86<$K$12,$L$14,-$J$41-SUM($J$43:J85)) -> 3500 | K86: =ROUND(($K$11-SUM($J$43:J85))*(($K$19/(IF(ROUND(YEAR(E85)/4,0)-YEAR(E85)/4=0,366,365)))*G86)+($K$11-SUM($J$43:J85))*(($K$19/(IF(ROUND(YEAR(E86)/4,0)-YEAR(E86)/4=0,366,365)))*H86),2) -> 6879.89 | L86: 0 | V86: х | W86: х
A87: 1 | B87: 45 | D87: 46 | E87: 2025-08-12 | F87: 31 | G87: 19 | H87: 12 | I87: 10573.13 | J87: =IF(B87<$K$12,$L$14,-$J$41-SUM($J$43:J86)) -> 3500 | K87: =ROUND(($K$11-SUM($J$43:J86))*(($K$19/(IF(ROUND(YEAR(E86)/4,0)-YEAR(E86)/4=0,366,365)))*G87)+($K$11-SUM($J$43:J86))*(($K$19/(IF(ROUND(YEAR(E87)/4,0)-YEAR(E87)/4=0,366,365)))*H87),2) -> 7073.13 | L87: 0 | V87: х | W87: х
A88: 1 | B88: 46 | D88: 47 | E88: 2025-09-12 | F88: 31 | G88: 19 | H88: 12 | I88: 10537.04 | J88: =IF(B88<$K$12,$L$14,-$J$41-SUM($J$43:J87)) -> 3500 | K88: =ROUND(($K$11-SUM($J$43:J87))*(($K$19/(IF(ROUND(YEAR(E87)/4,0)-YEAR(E87)/4=0,366,365)))*G88)+($K$11-SUM($J$43:J87))*(($K$19/(IF(ROUND(YEAR(E88)/4,0)-YEAR(E88)/4=0,366,365)))*H88),2) -> 7037.04 | L88: 0 | V88: х | W88: х
A89: 1 | B89: 47 | D89: 48 | E89: 2025-10-12 | F89: 30 | G89: 18 | H89: 12 | I89: 10275.12 | J89: =IF(B89<$K$12,$L$14,-$J$41-SUM($J$43:J88)) -> 3500 | K89: =ROUND(($K$11-SUM($J$43:J88))*(($K$19/(IF(ROUND(YEAR(E88)/4,0)-YEAR(E88)/4=0,366,365)))*G89)+($K$11-SUM($J$43:J88))*(($K$19/(IF(ROUND(YEAR(E89)/4,0)-YEAR(E89)/4=0,366,365)))*H89),2) -> 6775.12 | L89: 0 | V89: х | W89: х
A90: 1 | B90: 48 | D90: =D89+1 -> 49 | E90: 2025-11-12 | F90: =IF(A90=1,E90-E89,0) -> 31 | G90: =EOMONTH(E89,0)-E89 -> 19 | H90: =E90-EOMONTH(E89,0) -> 12 | I90: =SUM(J90:U90) -> 18117.87 | J90: =IF(B90<$K$12,$L$14,-$J$41-SUM($J$43:J89)) -> 3500 | K90: =ROUND(($K$11-SUM($J$43:J89))*(($K$19/(IF(ROUND(YEAR(E89)/4,0)-YEAR(E89)/4=0,366,365)))*G90)+($K$11-SUM($J$43:J89))*(($K$19/(IF(ROUND(YEAR(E90)/4,0)-YEAR(E90)/4=0,366,365)))*H90),2) -> 6964.87 | L90: 0 | O90: =IF(B90<$K$12,$K$11*$K$24,0) -> 0 | T90: =IF(B90<$K$12,$K$9*$K$27,0)+(-SUM(J41:J89)*K28) -> 7653 | V90: х | W90: х
A91: 1 | B91: 49 | D91: =D90+1 -> 50 | E91: 2025-12-12 | F91: 30 | G91: 18 | H91: 12 | I91: 10205.27 | J91: =IF(B91<$K$12,$L$14,-$J$41-SUM($J$43:J90)) -> 3500 | K91: =ROUND(($K$11-SUM($J$43:J90))*(($K$19/(IF(ROUND(YEAR(E90)/4,0)-YEAR(E90)/4=0,366,365)))*G91)+($K$11-SUM($J$43:J90))*(($K$19/(IF(ROUND(YEAR(E91)/4,0)-YEAR(E91)/4=0,366,365)))*H91),2) -> 6705.27 | L91: 0 | V91: х | W91: х
A92: 1 | B92: =B91+1 -> 50 | D92: =D91+1 -> 51 | E92: 2026-01-12 | F92: 31 | G92: 19 | H92: 12 | I92: 10392.69 | J92: =IF(B92<$K$12,$L$14,-$J$41-SUM($J$43:J91)) -> 3500 | K92: =ROUND(($K$11-SUM($J$43:J91))*(($K$19/(IF(ROUND(YEAR(E91)/4,0)-YEAR(E91)/4=0,366,365)))*G92)+($K$11-SUM($J$43:J91))*(($K$19/(IF(ROUND(YEAR(E92)/4,0)-YEAR(E92)/4=0,366,365)))*H92),2) -> 6892.69 | L92: 0 | V92: х | W92: х
A93: 1 | B93: 51 | D93: =D92+1 -> 52 | E93: 2026-02-12 | F93: 31 | G93: 19 | H93: 12 | I93: 10356.61 | J93: =IF(B93<$K$12,$L$14,-$J$41-SUM($J$43:J92)) -> 3500 | K93: =ROUND(($K$11-SUM($J$43:J92))*(($K$19/(IF(ROUND(YEAR(E92)/4,0)-YEAR(E92)/4=0,366,365)))*G93)+($K$11-SUM($J$43:J92))*(($K$19/(IF(ROUND(YEAR(E93)/4,0)-YEAR(E93)/4=0,366,365)))*H93),2) -> 6856.61 | L93: 0 | V93: х | W93: х
A94: 1 | B94: 52 | D94: =D93+1 -> 53 | E94: 2026-03-12 | F94: 28 | G94: 16 | H94: 12 | I94: 9660.47 | J94: =IF(B94<$K$12,$L$14,-$J$41-SUM($J$43:J93)) -> 3500 | K94: =ROUND(($K$11-SUM($J$43:J93))*(($K$19/(IF(ROUND(YEAR(E93)/4,0)-YEAR(E93)/4=0,366,365)))*G94)+($K$11-SUM($J$43:J93))*(($K$19/(IF(ROUND(YEAR(E94)/4,0)-YEAR(E94)/4=0,366,365)))*H94),2) -> 6160.47 | L94: 0 | V94: х | W94: х
A95: 1 | B95: 53 | D95: =D94+1 -> 54 | E95: 2026-04-12 | F95: 31 | G95: 19 | H95: 12 | I95: 10284.43 | J95: =IF(B95<$K$12,$L$14,-$J$41-SUM($J$43:J94)) -> 3500 | K95: =ROUND(($K$11-SUM($J$43:J94))*(($K$19/(IF(ROUND(YEAR(E94)/4,0)-YEAR(E94)/4=0,366,365)))*G95)+($K$11-SUM($J$43:J94))*(($K$19/(IF(ROUND(YEAR(E95)/4,0)-YEAR(E95)/4=0,366,365)))*H95),2) -> 6784.43 | L95: 0 | V95: х | W95: х
A96: 1 | B96: 54 | D96: =D95+1 -> 55 | E96: 2026-05-12 | F96: 30 | G96: 18 | H96: 12 | I96: 10030.65 | J96: =IF(B96<$K$12,$L$14,-$J$41-SUM($J$43:J95)) -> 3500 | K96: =ROUND(($K$11-SUM($J$43:J95))*(($K$19/(IF(ROUND(YEAR(E95)/4,0)-YEAR(E95)/4=0,366,365)))*G96)+($K$11-SUM($J$43:J95))*(($K$19/(IF(ROUND(YEAR(E96)/4,0)-YEAR(E96)/4=0,366,365)))*H96),2) -> 6530.65 | L96: 0 | V96: х | W96: х
A97: 1 | B97: 55 | D97: =D96+1 -> 56 | E97: 2026-06-12 | F97: 31 | G97: 19 | H97: 12 | I97: 10212.26 | J97: =IF(B97<$K$12,$L$14,-$J$41-SUM($J$43:J96)) -> 3500 | K97: =ROUND(($K$11-SUM($J$43:J96))*(($K$19/(IF(ROUND(YEAR(E96)/4,0)-YEAR(E96)/4=0,366,365)))*G97)+($K$11-SUM($J$43:J96))*(($K$19/(IF(ROUND(YEAR(E97)/4,0)-YEAR(E97)/4=0,366,365)))*H97),2) -> 6712.26 | L97: 0 | V97: х | W97: х
A98: 1 | B98: 56 | D98: =D97+1 -> 57 | E98: 2026-07-12 | F98: 30 | G98: 18 | H98: 12 | I98: 9960.81 | J98: =IF(B98<$K$12,$L$14,-$J$41-SUM($J$43:J97)) -> 3500 | K98: =ROUND(($K$11-SUM($J$43:J97))*(($K$19/(IF(ROUND(YEAR(E97)/4,0)-YEAR(E97)/4=0,366,365)))*G98)+($K$11-SUM($J$43:J97))*(($K$19/(IF(ROUND(YEAR(E98)/4,0)-YEAR(E98)/4=0,366,365)))*H98),2) -> 6460.81 | L98: 0 | V98: х | W98: х
A99: 1 | B99: 57 | D99: =D98+1 -> 58 | E99: 2026-08-12 | F99: 31 | G99: 19 | H99: 12 | I99: 10140.08 | J99: =IF(B99<$K$12,$L$14,-$J$41-SUM($J$43:J98)) -> 3500 | K99: =ROUND(($K$11-SUM($J$43:J98))*(($K$19/(IF(ROUND(YEAR(E98)/4,0)-YEAR(E98)/4=0,366,365)))*G99)+($K$11-SUM($J$43:J98))*(($K$19/(IF(ROUND(YEAR(E99)/4,0)-YEAR(E99)/4=0,366,365)))*H99),2) -> 6640.08 | L99: 0 | V99: х | W99: х
A100: 1 | B100: 58 | D100: =D99+1 -> 59 | E100: 2026-09-12 | F100: 31 | G100: 19 | H100: 12 | I100: 10103.99 | J100: =IF(B100<$K$12,$L$14,-$J$41-SUM($J$43:J99)) -> 3500 | K100: =ROUND(($K$11-SUM($J$43:J99))*(($K$19/(IF(ROUND(YEAR(E99)/4,0)-YEAR(E99)/4=0,366,365)))*G100)+($K$11-SUM($J$43:J99))*(($K$19/(IF(ROUND(YEAR(E100)/4,0)-YEAR(E100)/4=0,366,365)))*H100),2) -> 6603.99 | L100: 0 | V100: х | W100: х
A101: 1 | B101: 59 | D101: =D100+1 -> 60 | E101: 2026-10-12 | F101: 30 | G101: 18 | H101: 12 | I101: 9856.04 | J101: =IF(B101<$K$12,$L$14,-$J$41-SUM($J$43:J100)) -> 3500 | K101: =ROUND(($K$11-SUM($J$43:J100))*(($K$19/(IF(ROUND(YEAR(E100)/4,0)-YEAR(E100)/4=0,366,365)))*G101)+($K$11-SUM($J$43:J100))*(($K$19/(IF(ROUND(YEAR(E101)/4,0)-YEAR(E101)/4=0,366,365)))*H101),2) -> 6356.04 | L101: 0 | V101: х | W101: х
A102: 1 | B102: 60 | D102: =D101+1 -> 61 | E102: 2026-11-12 | F102: 31 | G102: 19 | H102: 12 | I102: 17432.82 | J102: =IF(B102<$K$12,$L$14,-$J$41-SUM($J$43:J101)) -> 3500 | K102: =ROUND(($K$11-SUM($J$43:J101))*(($K$19/(IF(ROUND(YEAR(E101)/4,0)-YEAR(E101)/4=0,366,365)))*G102)+($K$11-SUM($J$43:J101))*(($K$19/(IF(ROUND(YEAR(E102)/4,0)-YEAR(E102)/4=0,366,365)))*H102),2) -> 6531.82 | L102: 0 | O102: =IF(B102<$K$12,$K$11*$K$24,0) -> 0 | T102: =IF(B102<$K$12,$K$9*$K$27,0)+(-SUM(J41:J101)*K28) -> 7401 | V102: х | W102: х
A103: 1 | B103: 61 | D103: =D102+1 -> 62 | E103: 2026-12-12 | F103: 30 | G103: 18 | H103: 12 | I103: 9786.19 | J103: =IF(B103<$K$12,$L$14,-$J$41-SUM($J$43:J102)) -> 3500 | K103: =ROUND(($K$11-SUM($J$43:J102))*(($K$19/(IF(ROUND(YEAR(E102)/4,0)-YEAR(E102)/4=0,366,365)))*G103)+($K$11-SUM($J$43:J102))*(($K$19/(IF(ROUND(YEAR(E103)/4,0)-YEAR(E103)/4=0,366,365)))*H103),2) -> 6286.19 | L103: 0 | V103: х | W103: х
A104: 1 | B104: 62 | D104: =D103+1 -> 63 | E104: 2027-01-12 | F104: 31 | G104: 19 | H104: 12 | I104: 9959.64 | J104: =IF(B104<$K$12,$L$14,-$J$41-SUM($J$43:J103)) -> 3500 | K104: =ROUND(($K$11-SUM($J$43:J103))*(($K$19/(IF(ROUND(YEAR(E103)/4,0)-YEAR(E103)/4=0,366,365)))*G104)+($K$11-SUM($J$43:J103))*(($K$19/(IF(ROUND(YEAR(E104)/4,0)-YEAR(E104)/4=0,366,365)))*H104),2) -> 6459.64 | L104: 0 | V104: х | W104: х
A105: 1 | B105: 63 | D105: =D104+1 -> 64 | E105: 2027-02-12 | F105: 31 | G105: 19 | H105: 12 | I105: 9923.56 | J105: =IF(B105<$K$12,$L$14,-$J$41-SUM($J$43:J104)) -> 3500 | K105: =ROUND(($K$11-SUM($J$43:J104))*(($K$19/(IF(ROUND(YEAR(E104)/4,0)-YEAR(E104)/4=0,366,365)))*G105)+($K$11-SUM($J$43:J104))*(($K$19/(IF(ROUND(YEAR(E105)/4,0)-YEAR(E105)/4=0,366,365)))*H105),2) -> 6423.56 | L105: 0 | V105: х | W105: х
A106: 1 | B106: 64 | D106: =D105+1 -> 65 | E106: 2027-03-12 | F106: 28 | G106: 16 | H106: 12 | I106: 9269.33 | J106: =IF(B106<$K$12,$L$14,-$J$41-SUM($J$43:J105)) -> 3500 | K106: =ROUND(($K$11-SUM($J$43:J105))*(($K$19/(IF(ROUND(YEAR(E105)/4,0)-YEAR(E105)/4=0,366,365)))*G106)+($K$11-SUM($J$43:J105))*(($K$19/(IF(ROUND(YEAR(E106)/4,0)-YEAR(E106)/4=0,366,365)))*H106),2) -> 5769.33 | L106: 0 | V106: х | W106: х
A107: =IF(B107<=$K$12,1,0) -> 1 | B107: 65 | D107: =D106+1 -> 66 | E107: 2027-04-12 | F107: 31 | G107: 19 | H107: 12 | I107: 9851.38 | J107: =IF(B107<$K$12,$L$14,-$J$41-SUM($J$43:J106)) -> 3500 | K107: =ROUND(($K$11-SUM($J$43:J106))*(($K$19/(IF(ROUND(YEAR(E106)/4,0)-YEAR(E106)/4=0,366,365)))*G107)+($K$11-SUM($J$43:J106))*(($K$19/(IF(ROUND(YEAR(E107)/4,0)-YEAR(E107)/4=0,366,365)))*H107),2) -> 6351.38 | L107: =IF(A107=1,IF(AND(YEAR($K$13)=YEAR(EDATE(E106,1)),MONTH($K$13)=MONTH(EDATE(E106,1))),$O$23-$O$46,$O$23),0) -> 0 | V107: х | W107: х
A108: 1 | B108: =B107+1 -> 66 | D108: =D107+1 -> 67 | E108: 2027-05-12 | F108: 30 | G108: 18 | H108: 12 | I108: 9611.58 | J108: =IF(B108<$K$12,$L$14,-$J$41-SUM($J$43:J107)) -> 3500 | K108: =ROUND(($K$11-SUM($J$43:J107))*(($K$19/(IF(ROUND(YEAR(E107)/4,0)-YEAR(E107)/4=0,366,365)))*G108)+($K$11-SUM($J$43:J107))*(($K$19/(IF(ROUND(YEAR(E108)/4,0)-YEAR(E108)/4=0,366,365)))*H108),2) -> 6111.58 | L108: 0 | V108: х | W108: х
A109: 1 | B109: 67 | D109: =D108+1 -> 68 | E109: =IF(AND(YEAR($K$13)=YEAR(EDATE(E108,1)),MONTH($K$13)=MONTH(EDATE(E108,1))),$K$13,EDATE(E108,1)) -> 2027-06-12 | F109: 31 | G109: 19 | H109: 12 | I109: 9779.21 | J109: =IF(B109<$K$12,$L$14,-$J$41-SUM($J$43:J108)) -> 3500 | K109: =ROUND(($K$11-SUM($J$43:J108))*(($K$19/(IF(ROUND(YEAR(E108)/4,0)-YEAR(E108)/4=0,366,365)))*G109)+($K$11-SUM($J$43:J108))*(($K$19/(IF(ROUND(YEAR(E109)/4,0)-YEAR(E109)/4=0,366,365)))*H109),2) -> 6279.21 | L109: 0 | V109: х | W109: х
A110: 1 | B110: 68 | D110: =D109+1 -> 69 | E110: 2027-07-12 | F110: 30 | G110: 18 | H110: 12 | I110: 9541.73 | J110: =IF(B110<$K$12,$L$14,-$J$41-SUM($J$43:J109)) -> 3500 | K110: =ROUND(($K$11-SUM($J$43:J109))*(($K$19/(IF(ROUND(YEAR(E109)/4,0)-YEAR(E109)/4=0,366,365)))*G110)+($K$11-SUM($J$43:J109))*(($K$19/(IF(ROUND(YEAR(E110)/4,0)-YEAR(E110)/4=0,366,365)))*H110),2) -> 6041.73 | L110: 0 | V110: х | W110: х
A111: 1 | B111: 69 | D111: =D110+1 -> 70 | E111: 2027-08-12 | F111: 31 | G111: 19 | H111: 12 | I111: 9707.03 | J111: =IF(B111<$K$12,$L$14,-$J$41-SUM($J$43:J110)) -> 3500 | K111: =ROUND(($K$11-SUM($J$43:J110))*(($K$19/(IF(ROUND(YEAR(E110)/4,0)-YEAR(E110)/4=0,366,365)))*G111)+($K$11-SUM($J$43:J110))*(($K$19/(IF(ROUND(YEAR(E111)/4,0)-YEAR(E111)/4=0,366,365)))*H111),2) -> 6207.03 | L111: 0 | V111: х | W111: х
A112: 1 | B112: 70 | D112: =D111+1 -> 71 | E112: 2027-09-12 | F112: 31 | G112: 19 | H112: 12 | I112: 9670.94 | J112: =IF(B112<$K$12,$L$14,-$J$41-SUM($J$43:J111)) -> 3500 | K112: =ROUND(($K$11-SUM($J$43:J111))*(($K$19/(IF(ROUND(YEAR(E111)/4,0)-YEAR(E111)/4=0,366,365)))*G112)+($K$11-SUM($J$43:J111))*(($K$19/(IF(ROUND(YEAR(E112)/4,0)-YEAR(E112)/4=0,366,365)))*H112),2) -> 6170.94 | L112: 0 | V112: х | W112: х
A113: 1 | B113: 71 | D113: =D112+1 -> 72 | E113: 2027-10-12 | F113: 30 | G113: 18 | H113: 12 | I113: 9436.96 | J113: =IF(B113<$K$12,$L$14,-$J$41-SUM($J$43:J112)) -> 3500 | K113: =ROUND(($K$11-SUM($J$43:J112))*(($K$19/(IF(ROUND(YEAR(E112)/4,0)-YEAR(E112)/4=0,366,365)))*G113)+($K$11-SUM($J$43:J112))*(($K$19/(IF(ROUND(YEAR(E113)/4,0)-YEAR(E113)/4=0,366,365)))*H113),2) -> 5936.96 | L113: 0 | V113: х | W113: х
A114: 1 | B114: 72 | D114: =D113+1 -> 73 | E114: 2027-11-12 | F114: 31 | G114: 19 | H114: 12 | I114: 16747.77 | J114: =IF(B114<$K$12,$L$14,-$J$41-SUM($J$43:J113)) -> 3500 | K114: =ROUND(($K$11-SUM($J$43:J113))*(($K$19/(IF(ROUND(YEAR(E113)/4,0)-YEAR(E113)/4=0,366,365)))*G114)+($K$11-SUM($J$43:J113))*(($K$19/(IF(ROUND(YEAR(E114)/4,0)-YEAR(E114)/4=0,366,365)))*H114),2) -> 6098.77 | L114: 0 | O114: =IF(B114<$K$12,$K$11*$K$24,0) -> 0 | T114: =IF(B114<$K$12,$K$9*$K$27,0)+(-SUM(J41:J113)*K28) -> 7149 | V114: х | W114: х
A115: 1 | B115: =B114+1 -> 73 | D115: =D114+1 -> 74 | E115: 2027-12-12 | F115: 30 | G115: 18 | H115: 12 | I115: 9367.11 | J115: =IF(B115<$K$12,$L$14,-$J$41-SUM($J$43:J114)) -> 3500 | K115: =ROUND(($K$11-SUM($J$43:J114))*(($K$19/(IF(ROUND(YEAR(E114)/4,0)-YEAR(E114)/4=0,366,365)))*G115)+($K$11-SUM($J$43:J114))*(($K$19/(IF(ROUND(YEAR(E115)/4,0)-YEAR(E115)/4=0,366,365)))*H115),2) -> 5867.11 | L115: 0 | V115: х | W115: х
A116: 1 | B116: =B115+1 -> 74 | D116: =D115+1 -> 75 | E116: 2028-01-12 | F116: 31 | G116: 19 | H116: 12 | I116: 9520.22 | J116: =IF(B116<$K$12,$L$14,-$J$41-SUM($J$43:J115)) -> 3500 | K116: =ROUND(($K$11-SUM($J$43:J115))*(($K$19/(IF(ROUND(YEAR(E115)/4,0)-YEAR(E115)/4=0,366,365)))*G116)+($K$11-SUM($J$43:J115))*(($K$19/(IF(ROUND(YEAR(E116)/4,0)-YEAR(E116)/4=0,366,365)))*H116),2) -> 6020.22 | L116: 0 | V116: х | W116: х
A117: 1 | B117: =B116+1 -> 75 | D117: =D116+1 -> 76 | E117: 2028-02-12 | F117: 31 | G117: 19 | H117: 12 | I117: 9474.14 | J117: =IF(B117<$K$12,$L$14,-$J$41-SUM($J$43:J116)) -> 3500 | K117: =ROUND(($K$11-SUM($J$43:J116))*(($K$19/(IF(ROUND(YEAR(E116)/4,0)-YEAR(E116)/4=0,366,365)))*G117)+($K$11-SUM($J$43:J116))*(($K$19/(IF(ROUND(YEAR(E117)/4,0)-YEAR(E117)/4=0,366,365)))*H117),2) -> 5974.14 | L117: 0 | V117: х | W117: х
A118: 1 | B118: =B117+1 -> 76 | D118: =D117+1 -> 77 | E118: 2028-03-12 | F118: 29 | G118: 17 | H118: 12 | I118: 9055.05 | J118: =IF(B118<$K$12,$L$14,-$J$41-SUM($J$43:J117)) -> 3500 | K118: =ROUND(($K$11-SUM($J$43:J117))*(($K$19/(IF(ROUND(YEAR(E117)/4,0)-YEAR(E117)/4=0,366,365)))*G118)+($K$11-SUM($J$43:J117))*(($K$19/(IF(ROUND(YEAR(E118)/4,0)-YEAR(E118)/4=0,366,365)))*H118),2) -> 5555.05 | L118: 0 | V118: х | W118: х
A119: 1 | B119: =B118+1 -> 77 | D119: =D118+1 -> 78 | E119: 2028-04-12 | F119: 31 | G119: 19 | H119: 12 | I119: 9402.16 | J119: =IF(B119<$K$12,$L$14,-$J$41-SUM($J$43:J118)) -> 3500 | K119: =ROUND(($K$11-SUM($J$43:J118))*(($K$19/(IF(ROUND(YEAR(E118)/4,0)-YEAR(E118)/4=0,366,365)))*G119)+($K$11-SUM($J$43:J118))*(($K$19/(IF(ROUND(YEAR(E119)/4,0)-YEAR(E119)/4=0,366,365)))*H119),2) -> 5902.16 | L119: 0 | V119: х | W119: х
A120: 1 | B120: =B119+1 -> 78 | D120: =D119+1 -> 79 | E120: 2028-05-12 | F120: 30 | G120: 18 | H120: 12 | I120: 9176.94 | J120: =IF(B120<$K$12,$L$14,-$J$41-SUM($J$43:J119)) -> 3500 | K120: =ROUND(($K$11-SUM($J$43:J119))*(($K$19/(IF(ROUND(YEAR(E119)/4,0)-YEAR(E119)/4=0,366,365)))*G120)+($K$11-SUM($J$43:J119))*(($K$19/(IF(ROUND(YEAR(E120)/4,0)-YEAR(E120)/4=0,366,365)))*H120),2) -> 5676.94 | L120: 0 | V120: х | W120: х
A121: 1 | B121: =B120+1 -> 79 | D121: =D120+1 -> 80 | E121: 2028-06-12 | F121: 31 | G121: 19 | H121: 12 | I121: 9330.19 | J121: =IF(B121<$K$12,$L$14,-$J$41-SUM($J$43:J120)) -> 3500 | K121: =ROUND(($K$11-SUM($J$43:J120))*(($K$19/(IF(ROUND(YEAR(E120)/4,0)-YEAR(E120)/4=0,366,365)))*G121)+($K$11-SUM($J$43:J120))*(($K$19/(IF(ROUND(YEAR(E121)/4,0)-YEAR(E121)/4=0,366,365)))*H121),2) -> 5830.19 | L121: 0 | V121: х | W121: х
A122: 1 | B122: =B121+1 -> 80 | D122: =D121+1 -> 81 | E122: 2028-07-12 | F122: 30 | G122: 18 | H122: 12 | I122: 9107.29 | J122: =IF(B122<$K$12,$L$14,-$J$41-SUM($J$43:J121)) -> 3500 | K122: =ROUND(($K$11-SUM($J$43:J121))*(($K$19/(IF(ROUND(YEAR(E121)/4,0)-YEAR(E121)/4=0,366,365)))*G122)+($K$11-SUM($J$43:J121))*(($K$19/(IF(ROUND(YEAR(E122)/4,0)-YEAR(E122)/4=0,366,365)))*H122),2) -> 5607.29 | L122: 0 | V122: х | W122: х
A123: 1 | B123: =B122+1 -> 81 | D123: =D122+1 -> 82 | E123: 2028-08-12 | F123: 31 | G123: 19 | H123: 12 | I123: 9258.21 | J123: =IF(B123<$K$12,$L$14,-$J$41-SUM($J$43:J122)) -> 3500 | K123: =ROUND(($K$11-SUM($J$43:J122))*(($K$19/(IF(ROUND(YEAR(E122)/4,0)-YEAR(E122)/4=0,366,365)))*G123)+($K$11-SUM($J$43:J122))*(($K$19/(IF(ROUND(YEAR(E123)/4,0)-YEAR(E123)/4=0,366,365)))*H123),2) -> 5758.21 | L123: 0 | V123: х | W123: х
A124: 1 | B124: =B123+1 -> 82 | D124: =D123+1 -> 83 | E124: 2028-09-12 | F124: 31 | G124: 19 | H124: 12 | I124: 9222.22 | J124: =IF(B124<$K$12,$L$14,-$J$41-SUM($J$43:J123)) -> 3500 | K124: =ROUND(($K$11-SUM($J$43:J123))*(($K$19/(IF(ROUND(YEAR(E123)/4,0)-YEAR(E123)/4=0,366,365)))*G124)+($K$11-SUM($J$43:J123))*(($K$19/(IF(ROUND(YEAR(E124)/4,0)-YEAR(E124)/4=0,366,365)))*H124),2) -> 5722.22 | L124: 0 | V124: х | W124: х
A125: 1 | B125: =B124+1 -> 83 | D125: =D124+1 -> 84 | E125: 2028-10-12 | F125: 30 | G125: 18 | H125: 12 | I125: 9002.8 | J125: =IF(B125<$K$12,$L$14,-$J$41-SUM($J$43:J124)) -> 3500 | K125: =ROUND(($K$11-SUM($J$43:J124))*(($K$19/(IF(ROUND(YEAR(E124)/4,0)-YEAR(E124)/4=0,366,365)))*G125)+($K$11-SUM($J$43:J124))*(($K$19/(IF(ROUND(YEAR(E125)/4,0)-YEAR(E125)/4=0,366,365)))*H125),2) -> 5502.8 | L125: 0 | V125: х | W125: х
A126: 1 | B126: =B125+1 -> 84 | D126: =D125+1 -> 85 | E126: 2028-11-12 | F126: 31 | G126: 19 | H126: 12 | I126: 16047.24 | J126: =IF(B126<$K$12,$L$14,-$J$41-SUM($J$43:J125)) -> 3500 | K126: =ROUND(($K$11-SUM($J$43:J125))*(($K$19/(IF(ROUND(YEAR(E125)/4,0)-YEAR(E125)/4=0,366,365)))*G126)+($K$11-SUM($J$43:J125))*(($K$19/(IF(ROUND(YEAR(E126)/4,0)-YEAR(E126)/4=0,366,365)))*H126),2) -> 5650.24 | L126: 0 | O126: =IF(B126<$K$12,$K$11*$K$24,0) -> 0 | T126: =IF(B126<$K$12,$K$9*$K$27,0)+(-SUM(J41:J125)*K28) -> 6897 | V126: х | W126: х
A127: 1 | B127: =B126+1 -> 85 | D127: =D126+1 -> 86 | E127: 2028-12-12 | F127: 30 | G127: 18 | H127: 12 | I127: 8933.15 | J127: =IF(B127<$K$12,$L$14,-$J$41-SUM($J$43:J126)) -> 3500 | K127: =ROUND(($K$11-SUM($J$43:J126))*(($K$19/(IF(ROUND(YEAR(E126)/4,0)-YEAR(E126)/4=0,366,365)))*G127)+($K$11-SUM($J$43:J126))*(($K$19/(IF(ROUND(YEAR(E127)/4,0)-YEAR(E127)/4=0,366,365)))*H127),2) -> 5433.15 | L127: 0 | V127: х | W127: х
A128: 1 | B128: =B127+1 -> 86 | D128: =D127+1 -> 87 | E128: 2029-01-12 | F128: 31 | G128: 19 | H128: 12 | I128: 9084.18 | J128: =IF(B128<$K$12,$L$14,-$J$41-SUM($J$43:J127)) -> 3500 | K128: =ROUND(($K$11-SUM($J$43:J127))*(($K$19/(IF(ROUND(YEAR(E127)/4,0)-YEAR(E127)/4=0,366,365)))*G128)+($K$11-SUM($J$43:J127))*(($K$19/(IF(ROUND(YEAR(E128)/4,0)-YEAR(E128)/4=0,366,365)))*H128),2) -> 5584.18 | L128: 0 | V128: х | W128: х
A129: 1 | B129: =B128+1 -> 87 | D129: =D128+1 -> 88 | E129: 2029-02-12 | F129: 31 | G129: 19 | H129: 12 | I129: 9057.46 | J129: =IF(B129<$K$12,$L$14,-$J$41-SUM($J$43:J128)) -> 3500 | K129: =ROUND(($K$11-SUM($J$43:J128))*(($K$19/(IF(ROUND(YEAR(E128)/4,0)-YEAR(E128)/4=0,366,365)))*G129)+($K$11-SUM($J$43:J128))*(($K$19/(IF(ROUND(YEAR(E129)/4,0)-YEAR(E129)/4=0,366,365)))*H129),2) -> 5557.46 | L129: 0 | V129: х | W129: х
A130: 1 | B130: =B129+1 -> 88 | D130: =D129+1 -> 89 | E130: 2029-03-12 | F130: 28 | G130: 16 | H130: 12 | I130: 8487.05 | J130: =IF(B130<$K$12,$L$14,-$J$41-SUM($J$43:J129)) -> 3500 | K130: =ROUND(($K$11-SUM($J$43:J129))*(($K$19/(IF(ROUND(YEAR(E129)/4,0)-YEAR(E129)/4=0,366,365)))*G130)+($K$11-SUM($J$43:J129))*(($K$19/(IF(ROUND(YEAR(E130)/4,0)-YEAR(E130)/4=0,366,365)))*H130),2) -> 4987.05 | L130: 0 | V130: х | W130: х
A131: 1 | B131: =B130+1 -> 89 | D131: =D130+1 -> 90 | E131: 2029-04-12 | F131: 31 | G131: 19 | H131: 12 | I131: 8985.28 | J131: =IF(B131<$K$12,$L$14,-$J$41-SUM($J$43:J130)) -> 3500 | K131: =ROUND(($K$11-SUM($J$43:J130))*(($K$19/(IF(ROUND(YEAR(E130)/4,0)-YEAR(E130)/4=0,366,365)))*G131)+($K$11-SUM($J$43:J130))*(($K$19/(IF(ROUND(YEAR(E131)/4,0)-YEAR(E131)/4=0,366,365)))*H131),2) -> 5485.28 | L131: 0 | V131: х | W131: х
A132: 1 | B132: =B131+1 -> 90 | D132: =D131+1 -> 91 | E132: 2029-05-12 | F132: 30 | G132: 18 | H132: 12 | I132: 8773.42 | J132: =IF(B132<$K$12,$L$14,-$J$41-SUM($J$43:J131)) -> 3500 | K132: =ROUND(($K$11-SUM($J$43:J131))*(($K$19/(IF(ROUND(YEAR(E131)/4,0)-YEAR(E131)/4=0,366,365)))*G132)+($K$11-SUM($J$43:J131))*(($K$19/(IF(ROUND(YEAR(E132)/4,0)-YEAR(E132)/4=0,366,365)))*H132),2) -> 5273.42 | L132: 0 | V132: х | W132: х
A133: 1 | B133: =B132+1 -> 91 | D133: =D132+1 -> 92 | E133: 2029-06-12 | F133: 31 | G133: 19 | H133: 12 | I133: 8913.11 | J133: =IF(B133<$K$12,$L$14,-$J$41-SUM($J$43:J132)) -> 3500 | K133: =ROUND(($K$11-SUM($J$43:J132))*(($K$19/(IF(ROUND(YEAR(E132)/4,0)-YEAR(E132)/4=0,366,365)))*G133)+($K$11-SUM($J$43:J132))*(($K$19/(IF(ROUND(YEAR(E133)/4,0)-YEAR(E133)/4=0,366,365)))*H133),2) -> 5413.11 | L133: 0 | V133: х | W133: х
A134: 1 | B134: =B133+1 -> 92 | D134: =D133+1 -> 93 | E134: 2029-07-12 | F134: 30 | G134: 18 | H134: 12 | I134: 8703.57 | J134: =IF(B134<$K$12,$L$14,-$J$41-SUM($J$43:J133)) -> 3500 | K134: =ROUND(($K$11-SUM($J$43:J133))*(($K$19/(IF(ROUND(YEAR(E133)/4,0)-YEAR(E133)/4=0,366,365)))*G134)+($K$11-SUM($J$43:J133))*(($K$19/(IF(ROUND(YEAR(E134)/4,0)-YEAR(E134)/4=0,366,365)))*H134),2) -> 5203.57 | L134: 0 | V134: х | W134: х
A135: 1 | B135: =B134+1 -> 93 | D135: =D134+1 -> 94 | E135: 2029-08-12 | F135: 31 | G135: 19 | H135: 12 | I135: 8840.93 | J135: =IF(B135<$K$12,$L$14,-$J$41-SUM($J$43:J134)) -> 3500 | K135: =ROUND(($K$11-SUM($J$43:J134))*(($K$19/(IF(ROUND(YEAR(E134)/4,0)-YEAR(E134)/4=0,366,365)))*G135)+($K$11-SUM($J$43:J134))*(($K$19/(IF(ROUND(YEAR(E135)/4,0)-YEAR(E135)/4=0,366,365)))*H135),2) -> 5340.93 | L135: 0 | V135: х | W135: х
A136: 1 | B136: =B135+1 -> 94 | D136: =D135+1 -> 95 | E136: 2029-09-12 | F136: 31 | G136: 19 | H136: 12 | I136: 8804.85 | J136: =IF(B136<$K$12,$L$14,-$J$41-SUM($J$43:J135)) -> 3500 | K136: =ROUND(($K$11-SUM($J$43:J135))*(($K$19/(IF(ROUND(YEAR(E135)/4,0)-YEAR(E135)/4=0,366,365)))*G136)+($K$11-SUM($J$43:J135))*(($K$19/(IF(ROUND(YEAR(E136)/4,0)-YEAR(E136)/4=0,366,365)))*H136),2) -> 5304.85 | L136: 0 | V136: х | W136: х
A137: 1 | B137: =B136+1 -> 95 | D137: =D136+1 -> 96 | E137: 2029-10-12 | F137: 30 | G137: 18 | H137: 12 | I137: 8598.8 | J137: =IF(B137<$K$12,$L$14,-$J$41-SUM($J$43:J136)) -> 3500 | K137: =ROUND(($K$11-SUM($J$43:J136))*(($K$19/(IF(ROUND(YEAR(E136)/4,0)-YEAR(E136)/4=0,366,365)))*G137)+($K$11-SUM($J$43:J136))*(($K$19/(IF(ROUND(YEAR(E137)/4,0)-YEAR(E137)/4=0,366,365)))*H137),2) -> 5098.8 | L137: 0 | V137: х | W137: х
A138: 1 | B138: =B137+1 -> 96 | D138: =D137+1 -> 97 | E138: 2029-11-12 | F138: 31 | G138: 19 | H138: 12 | I138: 15377.67 | J138: =IF(B138<$K$12,$L$14,-$J$41-SUM($J$43:J137)) -> 3500 | K138: =ROUND(($K$11-SUM($J$43:J137))*(($K$19/(IF(ROUND(YEAR(E137)/4,0)-YEAR(E137)/4=0,366,365)))*G138)+($K$11-SUM($J$43:J137))*(($K$19/(IF(ROUND(YEAR(E138)/4,0)-YEAR(E138)/4=0,366,365)))*H138),2) -> 5232.67 | L138: 0 | O138: =IF(B138<$K$12,$K$11*$K$24,0) -> 0 | T138: =IF(B138<$K$12,$K$9*$K$27,0)+(-SUM(J41:J137)*K28) -> 6645 | V138: х | W138: х
A139: 1 | B139: =B138+1 -> 97 | D139: =D138+1 -> 98 | E139: 2029-12-12 | F139: 30 | G139: 18 | H139: 12 | I139: 8528.95 | J139: =IF(B139<$K$12,$L$14,-$J$41-SUM($J$43:J138)) -> 3500 | K139: =ROUND(($K$11-SUM($J$43:J138))*(($K$19/(IF(ROUND(YEAR(E138)/4,0)-YEAR(E138)/4=0,366,365)))*G139)+($K$11-SUM($J$43:J138))*(($K$19/(IF(ROUND(YEAR(E139)/4,0)-YEAR(E139)/4=0,366,365)))*H139),2) -> 5028.95 | L139: 0 | V139: х | W139: х
A140: 1 | B140: =B139+1 -> 98 | D140: =D139+1 -> 99 | E140: 2030-01-12 | F140: 31 | G140: 19 | H140: 12 | I140: 8660.5 | J140: =IF(B140<$K$12,$L$14,-$J$41-SUM($J$43:J139)) -> 3500 | K140: =ROUND(($K$11-SUM($J$43:J139))*(($K$19/(IF(ROUND(YEAR(E139)/4,0)-YEAR(E139)/4=0,366,365)))*G140)+($K$11-SUM($J$43:J139))*(($K$19/(IF(ROUND(YEAR(E140)/4,0)-YEAR(E140)/4=0,366,365)))*H140),2) -> 5160.5 | L140: 0 | V140: х | W140: х
A141: 1 | B141: =B140+1 -> 99 | D141: =D140+1 -> 100 | E141: 2030-02-12 | F141: 31 | G141: 19 | H141: 12 | I141: 8624.41 | J141: =IF(B141<$K$12,$L$14,-$J$41-SUM($J$43:J140)) -> 3500 | K141: =ROUND(($K$11-SUM($J$43:J140))*(($K$19/(IF(ROUND(YEAR(E140)/4,0)-YEAR(E140)/4=0,366,365)))*G141)+($K$11-SUM($J$43:J140))*(($K$19/(IF(ROUND(YEAR(E141)/4,0)-YEAR(E141)/4=0,366,365)))*H141),2) -> 5124.41 | L141: 0 | V141: х | W141: х
A142: 1 | B142: =B141+1 -> 100 | D142: =D141+1 -> 101 | E142: 2030-03-12 | F142: 28 | G142: 16 | H142: 12 | I142: 8095.9 | J142: =IF(B142<$K$12,$L$14,-$J$41-SUM($J$43:J141)) -> 3500 | K142: =ROUND(($K$11-SUM($J$43:J141))*(($K$19/(IF(ROUND(YEAR(E141)/4,0)-YEAR(E141)/4=0,366,365)))*G142)+($K$11-SUM($J$43:J141))*(($K$19/(IF(ROUND(YEAR(E142)/4,0)-YEAR(E142)/4=0,366,365)))*H142),2) -> 4595.9 | L142: 0 | V142: х | W142: х
A143: 1 | B143: =B142+1 -> 101 | D143: =D142+1 -> 102 | E143: 2030-04-12 | F143: 31 | G143: 19 | H143: 12 | I143: 8552.24 | J143: =IF(B143<$K$12,$L$14,-$J$41-SUM($J$43:J142)) -> 3500 | K143: =ROUND(($K$11-SUM($J$43:J142))*(($K$19/(IF(ROUND(YEAR(E142)/4,0)-YEAR(E142)/4=0,366,365)))*G143)+($K$11-SUM($J$43:J142))*(($K$19/(IF(ROUND(YEAR(E143)/4,0)-YEAR(E143)/4=0,366,365)))*H143),2) -> 5052.24 | L143: 0 | V143: х | W143: х
A144: 1 | B144: =B143+1 -> 102 | D144: =D143+1 -> 103 | E144: 2030-05-12 | F144: 30 | G144: 18 | H144: 12 | I144: 8354.34 | J144: =IF(B144<$K$12,$L$14,-$J$41-SUM($J$43:J143)) -> 3500 | K144: =ROUND(($K$11-SUM($J$43:J143))*(($K$19/(IF(ROUND(YEAR(E143)/4,0)-YEAR(E143)/4=0,366,365)))*G144)+($K$11-SUM($J$43:J143))*(($K$19/(IF(ROUND(YEAR(E144)/4,0)-YEAR(E144)/4=0,366,365)))*H144),2) -> 4854.34 | L144: 0 | V144: х | W144: х
A145: 1 | B145: =B144+1 -> 103 | D145: =D144+1 -> 104 | E145: 2030-06-12 | F145: 31 | G145: 19 | H145: 12 | I145: 8480.06 | J145: =IF(B145<$K$12,$L$14,-$J$41-SUM($J$43:J144)) -> 3500 | K145: =ROUND(($K$11-SUM($J$43:J144))*(($K$19/(IF(ROUND(YEAR(E144)/4,0)-YEAR(E144)/4=0,366,365)))*G145)+($K$11-SUM($J$43:J144))*(($K$19/(IF(ROUND(YEAR(E145)/4,0)-YEAR(E145)/4=0,366,365)))*H145),2) -> 4980.06 | L145: 0 | V145: х | W145: х
A146: 1 | B146: =B145+1 -> 104 | D146: =D145+1 -> 105 | E146: 2030-07-12 | F146: 30 | G146: 18 | H146: 12 | I146: 8284.49 | J146: =IF(B146<$K$12,$L$14,-$J$41-SUM($J$43:J145)) -> 3500 | K146: =ROUND(($K$11-SUM($J$43:J145))*(($K$19/(IF(ROUND(YEAR(E145)/4,0)-YEAR(E145)/4=0,366,365)))*G146)+($K$11-SUM($J$43:J145))*(($K$19/(IF(ROUND(YEAR(E146)/4,0)-YEAR(E146)/4=0,366,365)))*H146),2) -> 4784.49 | L146: 0 | V146: х | W146: х
A147: 1 | B147: =B146+1 -> 105 | D147: =D146+1 -> 106 | E147: 2030-08-12 | F147: 31 | G147: 19 | H147: 12 | I147: 8407.89 | J147: =IF(B147<$K$12,$L$14,-$J$41-SUM($J$43:J146)) -> 3500 | K147: =ROUND(($K$11-SUM($J$43:J146))*(($K$19/(IF(ROUND(YEAR(E146)/4,0)-YEAR(E146)/4=0,366,365)))*G147)+($K$11-SUM($J$43:J146))*(($K$19/(IF(ROUND(YEAR(E147)/4,0)-YEAR(E147)/4=0,366,365)))*H147),2) -> 4907.89 | L147: 0 | V147: х | W147: х
A148: 1 | B148: =B147+1 -> 106 | D148: =D147+1 -> 107 | E148: 2030-09-12 | F148: 31 | G148: 19 | H148: 12 | I148: 8371.8 | J148: =IF(B148<$K$12,$L$14,-$J$41-SUM($J$43:J147)) -> 3500 | K148: =ROUND(($K$11-SUM($J$43:J147))*(($K$19/(IF(ROUND(YEAR(E147)/4,0)-YEAR(E147)/4=0,366,365)))*G148)+($K$11-SUM($J$43:J147))*(($K$19/(IF(ROUND(YEAR(E148)/4,0)-YEAR(E148)/4=0,366,365)))*H148),2) -> 4871.8 | L148: 0 | V148: х | W148: х
A149: 1 | B149: =B148+1 -> 107 | D149: =D148+1 -> 108 | E149: 2030-10-12 | F149: 30 | G149: 18 | H149: 12 | I149: 8179.72 | J149: =IF(B149<$K$12,$L$14,-$J$41-SUM($J$43:J148)) -> 3500 | K149: =ROUND(($K$11-SUM($J$43:J148))*(($K$19/(IF(ROUND(YEAR(E148)/4,0)-YEAR(E148)/4=0,366,365)))*G149)+($K$11-SUM($J$43:J148))*(($K$19/(IF(ROUND(YEAR(E149)/4,0)-YEAR(E149)/4=0,366,365)))*H149),2) -> 4679.72 | L149: 0 | V149: х | W149: х
A150: 1 | B150: =B149+1 -> 108 | D150: =D149+1 -> 109 | E150: 2030-11-12 | F150: 31 | G150: 19 | H150: 12 | I150: 14692.62 | J150: =IF(B150<$K$12,$L$14,-$J$41-SUM($J$43:J149)) -> 3500 | K150: =ROUND(($K$11-SUM($J$43:J149))*(($K$19/(IF(ROUND(YEAR(E149)/4,0)-YEAR(E149)/4=0,366,365)))*G150)+($K$11-SUM($J$43:J149))*(($K$19/(IF(ROUND(YEAR(E150)/4,0)-YEAR(E150)/4=0,366,365)))*H150),2) -> 4799.62 | L150: 0 | O150: =IF(B150<$K$12,$K$11*$K$24,0) -> 0 | T150: =IF(B150<$K$12,$K$9*$K$27,0)+(-SUM(J41:J149)*K28) -> 6393 | V150: х | W150: х
A151: 1 | B151: =B150+1 -> 109 | D151: =D150+1 -> 110 | E151: 2030-12-12 | F151: 30 | G151: 18 | H151: 12 | I151: 8109.87 | J151: =IF(B151<$K$12,$L$14,-$J$41-SUM($J$43:J150)) -> 3500 | K151: =ROUND(($K$11-SUM($J$43:J150))*(($K$19/(IF(ROUND(YEAR(E150)/4,0)-YEAR(E150)/4=0,366,365)))*G151)+($K$11-SUM($J$43:J150))*(($K$19/(IF(ROUND(YEAR(E151)/4,0)-YEAR(E151)/4=0,366,365)))*H151),2) -> 4609.87 | L151: 0 | V151: х | W151: х
A152: 1 | B152: =B151+1 -> 110 | D152: =D151+1 -> 111 | E152: 2031-01-12 | F152: 31 | G152: 19 | H152: 12 | I152: 8227.45 | J152: =IF(B152<$K$12,$L$14,-$J$41-SUM($J$43:J151)) -> 3500 | K152: =ROUND(($K$11-SUM($J$43:J151))*(($K$19/(IF(ROUND(YEAR(E151)/4,0)-YEAR(E151)/4=0,366,365)))*G152)+($K$11-SUM($J$43:J151))*(($K$19/(IF(ROUND(YEAR(E152)/4,0)-YEAR(E152)/4=0,366,365)))*H152),2) -> 4727.45 | L152: 0 | V152: х | W152: х
A153: 1 | B153: =B152+1 -> 111 | D153: =D152+1 -> 112 | E153: 2031-02-12 | F153: 31 | G153: 19 | H153: 12 | I153: 8191.36 | J153: =IF(B153<$K$12,$L$14,-$J$41-SUM($J$43:J152)) -> 3500 | K153: =ROUND(($K$11-SUM($J$43:J152))*(($K$19/(IF(ROUND(YEAR(E152)/4,0)-YEAR(E152)/4=0,366,365)))*G153)+($K$11-SUM($J$43:J152))*(($K$19/(IF(ROUND(YEAR(E153)/4,0)-YEAR(E153)/4=0,366,365)))*H153),2) -> 4691.36 | L153: 0 | V153: х | W153: х
A154: 1 | B154: =B153+1 -> 112 | D154: =D153+1 -> 113 | E154: 2031-03-12 | F154: =IF(A154=1,E154-E153,0) -> 28 | G154: =EOMONTH(E153,0)-E153 -> 16 | H154: =E154-EOMONTH(E153,0) -> 12 | I154: =SUM(J154:U154) -> 7704.76 | J154: =IF(B154<$K$12,$L$14,-$J$41-SUM($J$43:J153)) -> 3500 | K154: =ROUND(($K$11-SUM($J$43:J153))*(($K$19/(IF(ROUND(YEAR(E153)/4,0)-YEAR(E153)/4=0,366,365)))*G154)+($K$11-SUM($J$43:J153))*(($K$19/(IF(ROUND(YEAR(E154)/4,0)-YEAR(E154)/4=0,366,365)))*H154),2) -> 4204.76 | L154: 0 | V154: х | W154: х
A155: 1 | B155: =B154+1 -> 113 | D155: =D154+1 -> 114 | E155: 2031-04-12 | F155: 31 | G155: 19 | H155: 12 | I155: 8119.19 | J155: =IF(B155<$K$12,$L$14,-$J$41-SUM($J$43:J154)) -> 3500 | K155: =ROUND(($K$11-SUM($J$43:J154))*(($K$19/(IF(ROUND(YEAR(E154)/4,0)-YEAR(E154)/4=0,366,365)))*G155)+($K$11-SUM($J$43:J154))*(($K$19/(IF(ROUND(YEAR(E155)/4,0)-YEAR(E155)/4=0,366,365)))*H155),2) -> 4619.19 | L155: 0 | V155: х | W155: х
A156: 1 | B156: =B155+1 -> 114 | D156: =D155+1 -> 115 | E156: 2031-05-12 | F156: 30 | G156: 18 | H156: 12 | I156: 7935.26 | J156: =IF(B156<$K$12,$L$14,-$J$41-SUM($J$43:J155)) -> 3500 | K156: =ROUND(($K$11-SUM($J$43:J155))*(($K$19/(IF(ROUND(YEAR(E155)/4,0)-YEAR(E155)/4=0,366,365)))*G156)+($K$11-SUM($J$43:J155))*(($K$19/(IF(ROUND(YEAR(E156)/4,0)-YEAR(E156)/4=0,366,365)))*H156),2) -> 4435.26 | L156: 0 | V156: х | W156: х
A157: 1 | B157: =B156+1 -> 115 | D157: =D156+1 -> 116 | E157: 2031-06-12 | F157: 31 | G157: 19 | H157: 12 | I157: 8047.01 | J157: =IF(B157<$K$12,$L$14,-$J$41-SUM($J$43:J156)) -> 3500 | K157: =ROUND(($K$11-SUM($J$43:J156))*(($K$19/(IF(ROUND(YEAR(E156)/4,0)-YEAR(E156)/4=0,366,365)))*G157)+($K$11-SUM($J$43:J156))*(($K$19/(IF(ROUND(YEAR(E157)/4,0)-YEAR(E157)/4=0,366,365)))*H157),2) -> 4547.01 | L157: 0 | V157: х | W157: х
A158: 1 | B158: =B157+1 -> 116 | D158: =D157+1 -> 117 | E158: 2031-07-12 | F158: 30 | G158: 18 | H158: 12 | I158: 7865.41 | J158: =IF(B158<$K$12,$L$14,-$J$41-SUM($J$43:J157)) -> 3500 | K158: =ROUND(($K$11-SUM($J$43:J157))*(($K$19/(IF(ROUND(YEAR(E157)/4,0)-YEAR(E157)/4=0,366,365)))*G158)+($K$11-SUM($J$43:J157))*(($K$19/(IF(ROUND(YEAR(E158)/4,0)-YEAR(E158)/4=0,366,365)))*H158),2) -> 4365.41 | L158: 0 | V158: х | W158: х
A159: 1 | B159: =B158+1 -> 117 | D159: =D158+1 -> 118 | E159: 2031-08-12 | F159: 31 | G159: 19 | H159: 12 | I159: 7974.84 | J159: =IF(B159<$K$12,$L$14,-$J$41-SUM($J$43:J158)) -> 3500 | K159: =ROUND(($K$11-SUM($J$43:J158))*(($K$19/(IF(ROUND(YEAR(E158)/4,0)-YEAR(E158)/4=0,366,365)))*G159)+($K$11-SUM($J$43:J158))*(($K$19/(IF(ROUND(YEAR(E159)/4,0)-YEAR(E159)/4=0,366,365)))*H159),2) -> 4474.84 | L159: 0 | V159: х | W159: х
A160: 1 | B160: =B159+1 -> 118 | D160: =D159+1 -> 119 | E160: 2031-09-12 | F160: 31 | G160: 19 | H160: 12 | I160: 7938.75 | J160: =IF(B160<$K$12,$L$14,-$J$41-SUM($J$43:J159)) -> 3500 | K160: =ROUND(($K$11-SUM($J$43:J159))*(($K$19/(IF(ROUND(YEAR(E159)/4,0)-YEAR(E159)/4=0,366,365)))*G160)+($K$11-SUM($J$43:J159))*(($K$19/(IF(ROUND(YEAR(E160)/4,0)-YEAR(E160)/4=0,366,365)))*H160),2) -> 4438.75 | L160: 0 | V160: х | W160: х
A161: 1 | B161: =B160+1 -> 119 | D161: =D160+1 -> 120 | E161: 2031-10-12 | F161: 30 | G161: 18 | H161: 12 | I161: 7760.64 | J161: =IF(B161<$K$12,$L$14,-$J$41-SUM($J$43:J160)) -> 3500 | K161: =ROUND(($K$11-SUM($J$43:J160))*(($K$19/(IF(ROUND(YEAR(E160)/4,0)-YEAR(E160)/4=0,366,365)))*G161)+($K$11-SUM($J$43:J160))*(($K$19/(IF(ROUND(YEAR(E161)/4,0)-YEAR(E161)/4=0,366,365)))*H161),2) -> 4260.64 | L161: 0 | V161: х | W161: х
A162: 1 | B162: =B161+1 -> 120 | D162: =D161+1 -> 121 | E162: 2031-11-12 | F162: 31 | G162: 19 | H162: 12 | I162: 14007.58 | J162: =IF(B162<$K$12,$L$14,-$J$41-SUM($J$43:J161)) -> 3500 | K162: =ROUND(($K$11-SUM($J$43:J161))*(($K$19/(IF(ROUND(YEAR(E161)/4,0)-YEAR(E161)/4=0,366,365)))*G162)+($K$11-SUM($J$43:J161))*(($K$19/(IF(ROUND(YEAR(E162)/4,0)-YEAR(E162)/4=0,366,365)))*H162),2) -> 4366.58 | L162: 0 | O162: =IF(B162<$K$12,$K$11*$K$24,0) -> 0 | T162: =IF(B162<$K$12,$K$9*$K$27,0)+(-SUM(J41:J161)*K28) -> 6141 | V162: х | W162: х
A163: 1 | B163: =B162+1 -> 121 | D163: =D162+1 -> 122 | E163: 2031-12-12 | F163: 30 | G163: 18 | H163: 12 | I163: 7690.79 | J163: =IF(B163<$K$12,$L$14,-$J$41-SUM($J$43:J162)) -> 3500 | K163: =ROUND(($K$11-SUM($J$43:J162))*(($K$19/(IF(ROUND(YEAR(E162)/4,0)-YEAR(E162)/4=0,366,365)))*G163)+($K$11-SUM($J$43:J162))*(($K$19/(IF(ROUND(YEAR(E163)/4,0)-YEAR(E163)/4=0,366,365)))*H163),2) -> 4190.79 | L163: 0 | V163: х | W163: х
A164: 1 | B164: =B163+1 -> 122 | D164: =D163+1 -> 123 | E164: 2032-01-12 | F164: 31 | G164: 19 | H164: 12 | I164: 7789.86 | J164: =IF(B164<$K$12,$L$14,-$J$41-SUM($J$43:J163)) -> 3500 | K164: =ROUND(($K$11-SUM($J$43:J163))*(($K$19/(IF(ROUND(YEAR(E163)/4,0)-YEAR(E163)/4=0,366,365)))*G164)+($K$11-SUM($J$43:J163))*(($K$19/(IF(ROUND(YEAR(E164)/4,0)-YEAR(E164)/4=0,366,365)))*H164),2) -> 4289.86 | L164: 0 | V164: х | W164: х
A165: 1 | B165: =B164+1 -> 123 | D165: =D164+1 -> 124 | E165: 2032-02-12 | F165: 31 | G165: 19 | H165: 12 | I165: 7746.68 | J165: =IF(B165<$K$12,$L$14,-$J$41-SUM($J$43:J164)) -> 3500 | K165: =ROUND(($K$11-SUM($J$43:J164))*(($K$19/(IF(ROUND(YEAR(E164)/4,0)-YEAR(E164)/4=0,366,365)))*G165)+($K$11-SUM($J$43:J164))*(($K$19/(IF(ROUND(YEAR(E165)/4,0)-YEAR(E165)/4=0,366,365)))*H165),2) -> 4246.68 | L165: 0 | V165: х | W165: х
A166: 1 | B166: =B165+1 -> 124 | D166: =D165+1 -> 125 | E166: 2032-03-12 | F166: 29 | G166: 17 | H166: 12 | I166: 7439.03 | J166: =IF(B166<$K$12,$L$14,-$J$41-SUM($J$43:J165)) -> 3500 | K166: =ROUND(($K$11-SUM($J$43:J165))*(($K$19/(IF(ROUND(YEAR(E165)/4,0)-YEAR(E165)/4=0,366,365)))*G166)+($K$11-SUM($J$43:J165))*(($K$19/(IF(ROUND(YEAR(E166)/4,0)-YEAR(E166)/4=0,366,365)))*H166),2) -> 3939.03 | L166: 0 | V166: х | W166: х
A167: 1 | B167: =B166+1 -> 125 | D167: =D166+1 -> 126 | E167: 2032-04-12 | F167: 31 | G167: 19 | H167: 12 | I167: 7674.7 | J167: =IF(B167<$K$12,$L$14,-$J$41-SUM($J$43:J166)) -> 3500 | K167: =ROUND(($K$11-SUM($J$43:J166))*(($K$19/(IF(ROUND(YEAR(E166)/4,0)-YEAR(E166)/4=0,366,365)))*G167)+($K$11-SUM($J$43:J166))*(($K$19/(IF(ROUND(YEAR(E167)/4,0)-YEAR(E167)/4=0,366,365)))*H167),2) -> 4174.7 | L167: 0 | V167: х | W167: х
A168: 1 | B168: =B167+1 -> 126 | D168: =D167+1 -> 127 | E168: 2032-05-12 | F168: 30 | G168: 18 | H168: 12 | I168: 7505.2 | J168: =IF(B168<$K$12,$L$14,-$J$41-SUM($J$43:J167)) -> 3500 | K168: =ROUND(($K$11-SUM($J$43:J167))*(($K$19/(IF(ROUND(YEAR(E167)/4,0)-YEAR(E167)/4=0,366,365)))*G168)+($K$11-SUM($J$43:J167))*(($K$19/(IF(ROUND(YEAR(E168)/4,0)-YEAR(E168)/4=0,366,365)))*H168),2) -> 4005.2 | L168: 0 | V168: х | W168: х
A169: 1 | B169: =B168+1 -> 127 | D169: =D168+1 -> 128 | E169: 2032-06-12 | F169: 31 | G169: 19 | H169: 12 | I169: 7602.72 | J169: =IF(B169<$K$12,$L$14,-$J$41-SUM($J$43:J168)) -> 3500 | K169: =ROUND(($K$11-SUM($J$43:J168))*(($K$19/(IF(ROUND(YEAR(E168)/4,0)-YEAR(E168)/4=0,366,365)))*G169)+($K$11-SUM($J$43:J168))*(($K$19/(IF(ROUND(YEAR(E169)/4,0)-YEAR(E169)/4=0,366,365)))*H169),2) -> 4102.72 | L169: 0 | V169: х | W169: х
A170: 1 | B170: =B169+1 -> 128 | D170: =D169+1 -> 129 | E170: 2032-07-12 | F170: 30 | G170: 18 | H170: 12 | I170: 7435.55 | J170: =IF(B170<$K$12,$L$14,-$J$41-SUM($J$43:J169)) -> 3500 | K170: =ROUND(($K$11-SUM($J$43:J169))*(($K$19/(IF(ROUND(YEAR(E169)/4,0)-YEAR(E169)/4=0,366,365)))*G170)+($K$11-SUM($J$43:J169))*(($K$19/(IF(ROUND(YEAR(E170)/4,0)-YEAR(E170)/4=0,366,365)))*H170),2) -> 3935.55 | L170: 0 | V170: х | W170: х
A171: =IF(B171<=$K$12,1,0) -> 1 | B171: =B170+1 -> 129 | D171: =D170+1 -> 130 | E171: 2032-08-12 | F171: 31 | G171: 19 | H171: 12 | I171: 7530.75 | J171: =IF(B171<$K$12,$L$14,-$J$41-SUM($J$43:J170)) -> 3500 | K171: =ROUND(($K$11-SUM($J$43:J170))*(($K$19/(IF(ROUND(YEAR(E170)/4,0)-YEAR(E170)/4=0,366,365)))*G171)+($K$11-SUM($J$43:J170))*(($K$19/(IF(ROUND(YEAR(E171)/4,0)-YEAR(E171)/4=0,366,365)))*H171),2) -> 4030.75 | L171: =IF(A171=1,IF(AND(YEAR($K$13)=YEAR(EDATE(E170,1)),MONTH($K$13)=MONTH(EDATE(E170,1))),$O$23-$O$46,$O$23),0) -> 0 | V171: х | W171: х
A172: 1 | B172: =B171+1 -> 130 | D172: =D171+1 -> 131 | E172: 2032-09-12 | F172: 31 | G172: 19 | H172: 12 | I172: 7494.76 | J172: =IF(B172<$K$12,$L$14,-$J$41-SUM($J$43:J171)) -> 3500 | K172: =ROUND(($K$11-SUM($J$43:J171))*(($K$19/(IF(ROUND(YEAR(E171)/4,0)-YEAR(E171)/4=0,366,365)))*G172)+($K$11-SUM($J$43:J171))*(($K$19/(IF(ROUND(YEAR(E172)/4,0)-YEAR(E172)/4=0,366,365)))*H172),2) -> 3994.76 | L172: 0 | V172: х | W172: х
A173: 1 | B173: =B172+1 -> 131 | D173: =D172+1 -> 132 | E173: =IF(AND(YEAR($K$13)=YEAR(EDATE(E172,1)),MONTH($K$13)=MONTH(EDATE(E172,1))),$K$13,EDATE(E172,1)) -> 2032-10-12 | F173: 30 | G173: 18 | H173: 12 | I173: 7331.07 | J173: =IF(B173<$K$12,$L$14,-$J$41-SUM($J$43:J172)) -> 3500 | K173: =ROUND(($K$11-SUM($J$43:J172))*(($K$19/(IF(ROUND(YEAR(E172)/4,0)-YEAR(E172)/4=0,366,365)))*G173)+($K$11-SUM($J$43:J172))*(($K$19/(IF(ROUND(YEAR(E173)/4,0)-YEAR(E173)/4=0,366,365)))*H173),2) -> 3831.07 | L173: 0 | V173: х | W173: х
A174: 1 | B174: =B173+1 -> 132 | D174: =D173+1 -> 133 | E174: 2032-11-12 | F174: 31 | G174: 19 | H174: 12 | I174: 13311.78 | J174: =IF(B174<$K$12,$L$14,-$J$41-SUM($J$43:J173)) -> 3500 | K174: =ROUND(($K$11-SUM($J$43:J173))*(($K$19/(IF(ROUND(YEAR(E173)/4,0)-YEAR(E173)/4=0,366,365)))*G174)+($K$11-SUM($J$43:J173))*(($K$19/(IF(ROUND(YEAR(E174)/4,0)-YEAR(E174)/4=0,366,365)))*H174),2) -> 3922.78 | L174: 0 | O174: =IF(B174<$K$12,$K$11*$K$24,0) -> 0 | T174: =IF(B174<$K$12,$K$9*$K$27,0)+(-SUM(J41:J173)*K28) -> 5889 | V174: х | W174: х
A175: 1 | B175: =B174+1 -> 133 | D175: =D174+1 -> 134 | E175: 2032-12-12 | F175: 30 | G175: 18 | H175: 12 | I175: 7261.41 | J175: =IF(B175<$K$12,$L$14,-$J$41-SUM($J$43:J174)) -> 3500 | K175: =ROUND(($K$11-SUM($J$43:J174))*(($K$19/(IF(ROUND(YEAR(E174)/4,0)-YEAR(E174)/4=0,366,365)))*G175)+($K$11-SUM($J$43:J174))*(($K$19/(IF(ROUND(YEAR(E175)/4,0)-YEAR(E175)/4=0,366,365)))*H175),2) -> 3761.41 | L175: 0 | V175: х | W175: х
A176: 1 | B176: =B175+1 -> 134 | D176: =D175+1 -> 135 | E176: 2033-01-12 | F176: 31 | G176: 19 | H176: 12 | I176: 7354.89 | J176: =IF(B176<$K$12,$L$14,-$J$41-SUM($J$43:J175)) -> 3500 | K176: =ROUND(($K$11-SUM($J$43:J175))*(($K$19/(IF(ROUND(YEAR(E175)/4,0)-YEAR(E175)/4=0,366,365)))*G176)+($K$11-SUM($J$43:J175))*(($K$19/(IF(ROUND(YEAR(E176)/4,0)-YEAR(E176)/4=0,366,365)))*H176),2) -> 3854.89 | L176: 0 | V176: х | W176: х
A177: 1 | B177: =B176+1 -> 135 | D177: =D176+1 -> 136 | E177: 2033-02-12 | F177: 31 | G177: 19 | H177: 12 | I177: 7325.26 | J177: =IF(B177<$K$12,$L$14,-$J$41-SUM($J$43:J176)) -> 3500 | K177: =ROUND(($K$11-SUM($J$43:J176))*(($K$19/(IF(ROUND(YEAR(E176)/4,0)-YEAR(E176)/4=0,366,365)))*G177)+($K$11-SUM($J$43:J176))*(($K$19/(IF(ROUND(YEAR(E177)/4,0)-YEAR(E177)/4=0,366,365)))*H177),2) -> 3825.26 | L177: 0 | V177: х | W177: х
A178: 1 | B178: =B177+1 -> 136 | D178: =D177+1 -> 137 | E178: 2033-03-12 | F178: 28 | G178: 16 | H178: 12 | I178: 6922.48 | J178: =IF(B178<$K$12,$L$14,-$J$41-SUM($J$43:J177)) -> 3500 | K178: =ROUND(($K$11-SUM($J$43:J177))*(($K$19/(IF(ROUND(YEAR(E177)/4,0)-YEAR(E177)/4=0,366,365)))*G178)+($K$11-SUM($J$43:J177))*(($K$19/(IF(ROUND(YEAR(E178)/4,0)-YEAR(E178)/4=0,366,365)))*H178),2) -> 3422.48 | L178: 0 | V178: х | W178: х
A179: 1 | B179: =B178+1 -> 137 | D179: =D178+1 -> 138 | E179: 2033-04-12 | F179: 31 | G179: 19 | H179: 12 | I179: 7253.09 | J179: =IF(B179<$K$12,$L$14,-$J$41-SUM($J$43:J178)) -> 3500 | K179: =ROUND(($K$11-SUM($J$43:J178))*(($K$19/(IF(ROUND(YEAR(E178)/4,0)-YEAR(E178)/4=0,366,365)))*G179)+($K$11-SUM($J$43:J178))*(($K$19/(IF(ROUND(YEAR(E179)/4,0)-YEAR(E179)/4=0,366,365)))*H179),2) -> 3753.09 | L179: 0 | V179: х | W179: х
A180: 1 | B180: =B179+1 -> 138 | D180: =D179+1 -> 139 | E180: 2033-05-12 | F180: 30 | G180: 18 | H180: 12 | I180: 7097.1 | J180: =IF(B180<$K$12,$L$14,-$J$41-SUM($J$43:J179)) -> 3500 | K180: =ROUND(($K$11-SUM($J$43:J179))*(($K$19/(IF(ROUND(YEAR(E179)/4,0)-YEAR(E179)/4=0,366,365)))*G180)+($K$11-SUM($J$43:J179))*(($K$19/(IF(ROUND(YEAR(E180)/4,0)-YEAR(E180)/4=0,366,365)))*H180),2) -> 3597.1 | L180: 0 | V180: х | W180: х
A181: 1 | B181: =B180+1 -> 139 | D181: =D180+1 -> 140 | E181: 2033-06-12 | F181: 31 | G181: 19 | H181: 12 | I181: 7180.91 | J181: =IF(B181<$K$12,$L$14,-$J$41-SUM($J$43:J180)) -> 3500 | K181: =ROUND(($K$11-SUM($J$43:J180))*(($K$19/(IF(ROUND(YEAR(E180)/4,0)-YEAR(E180)/4=0,366,365)))*G181)+($K$11-SUM($J$43:J180))*(($K$19/(IF(ROUND(YEAR(E181)/4,0)-YEAR(E181)/4=0,366,365)))*H181),2) -> 3680.91 | L181: 0 | V181: х | W181: х
A182: 1 | B182: =B181+1 -> 140 | D182: =D181+1 -> 141 | E182: 2033-07-12 | F182: 30 | G182: 18 | H182: 12 | I182: 7027.25 | J182: =IF(B182<$K$12,$L$14,-$J$41-SUM($J$43:J181)) -> 3500 | K182: =ROUND(($K$11-SUM($J$43:J181))*(($K$19/(IF(ROUND(YEAR(E181)/4,0)-YEAR(E181)/4=0,366,365)))*G182)+($K$11-SUM($J$43:J181))*(($K$19/(IF(ROUND(YEAR(E182)/4,0)-YEAR(E182)/4=0,366,365)))*H182),2) -> 3527.25 | L182: 0 | V182: х | W182: х
A183: 1 | B183: =B182+1 -> 141 | D183: =D182+1 -> 142 | E183: 2033-08-12 | F183: 31 | G183: 19 | H183: 12 | I183: 7108.74 | J183: =IF(B183<$K$12,$L$14,-$J$41-SUM($J$43:J182)) -> 3500 | K183: =ROUND(($K$11-SUM($J$43:J182))*(($K$19/(IF(ROUND(YEAR(E182)/4,0)-YEAR(E182)/4=0,366,365)))*G183)+($K$11-SUM($J$43:J182))*(($K$19/(IF(ROUND(YEAR(E183)/4,0)-YEAR(E183)/4=0,366,365)))*H183),2) -> 3608.74 | L183: 0 | V183: х | W183: х
A184: 1 | B184: =B183+1 -> 142 | D184: =D183+1 -> 143 | E184: 2033-09-12 | F184: 31 | G184: 19 | H184: 12 | I184: 7072.65 | J184: =IF(B184<$K$12,$L$14,-$J$41-SUM($J$43:J183)) -> 3500 | K184: =ROUND(($K$11-SUM($J$43:J183))*(($K$19/(IF(ROUND(YEAR(E183)/4,0)-YEAR(E183)/4=0,366,365)))*G184)+($K$11-SUM($J$43:J183))*(($K$19/(IF(ROUND(YEAR(E184)/4,0)-YEAR(E184)/4=0,366,365)))*H184),2) -> 3572.65 | L184: 0 | V184: х | W184: х
A185: 1 | B185: =B184+1 -> 143 | D185: =D184+1 -> 144 | E185: 2033-10-12 | F185: 30 | G185: 18 | H185: 12 | I185: 6922.48 | J185: =IF(B185<$K$12,$L$14,-$J$41-SUM($J$43:J184)) -> 3500 | K185: =ROUND(($K$11-SUM($J$43:J184))*(($K$19/(IF(ROUND(YEAR(E184)/4,0)-YEAR(E184)/4=0,366,365)))*G185)+($K$11-SUM($J$43:J184))*(($K$19/(IF(ROUND(YEAR(E185)/4,0)-YEAR(E185)/4=0,366,365)))*H185),2) -> 3422.48 | L185: 0 | V185: х | W185: х
A186: 1 | B186: =B185+1 -> 144 | D186: =D185+1 -> 145 | E186: 2033-11-12 | F186: 31 | G186: 19 | H186: 12 | I186: 12637.48 | J186: =IF(B186<$K$12,$L$14,-$J$41-SUM($J$43:J185)) -> 3500 | K186: =ROUND(($K$11-SUM($J$43:J185))*(($K$19/(IF(ROUND(YEAR(E185)/4,0)-YEAR(E185)/4=0,366,365)))*G186)+($K$11-SUM($J$43:J185))*(($K$19/(IF(ROUND(YEAR(E186)/4,0)-YEAR(E186)/4=0,366,365)))*H186),2) -> 3500.48 | L186: 0 | O186: =IF(B186<$K$12,$K$11*$K$24,0) -> 0 | T186: =IF(B186<$K$12,$K$9*$K$27,0)+(-SUM(J41:J185)*K28) -> 5637 | V186: х | W186: х
A187: 1 | B187: =B186+1 -> 145 | D187: =D186+1 -> 146 | E187: 2033-12-12 | F187: 30 | G187: 18 | H187: 12 | I187: 6852.64 | J187: =IF(B187<$K$12,$L$14,-$J$41-SUM($J$43:J186)) -> 3500 | K187: =ROUND(($K$11-SUM($J$43:J186))*(($K$19/(IF(ROUND(YEAR(E186)/4,0)-YEAR(E186)/4=0,366,365)))*G187)+($K$11-SUM($J$43:J186))*(($K$19/(IF(ROUND(YEAR(E187)/4,0)-YEAR(E187)/4=0,366,365)))*H187),2) -> 3352.64 | L187: 0 | V187: х | W187: х
A188: 1 | B188: =B187+1 -> 146 | D188: =D187+1 -> 147 | E188: 2034-01-12 | F188: 31 | G188: 19 | H188: 12 | I188: 6928.3 | J188: =IF(B188<$K$12,$L$14,-$J$41-SUM($J$43:J187)) -> 3500 | K188: =ROUND(($K$11-SUM($J$43:J187))*(($K$19/(IF(ROUND(YEAR(E187)/4,0)-YEAR(E187)/4=0,366,365)))*G188)+($K$11-SUM($J$43:J187))*(($K$19/(IF(ROUND(YEAR(E188)/4,0)-YEAR(E188)/4=0,366,365)))*H188),2) -> 3428.3 | L188: 0 | V188: х | W188: х
A189: 1 | B189: =B188+1 -> 147 | D189: =D188+1 -> 148 | E189: 2034-02-12 | F189: 31 | G189: 19 | H189: 12 | I189: 6892.22 | J189: =IF(B189<$K$12,$L$14,-$J$41-SUM($J$43:J188)) -> 3500 | K189: =ROUND(($K$11-SUM($J$43:J188))*(($K$19/(IF(ROUND(YEAR(E188)/4,0)-YEAR(E188)/4=0,366,365)))*G189)+($K$11-SUM($J$43:J188))*(($K$19/(IF(ROUND(YEAR(E189)/4,0)-YEAR(E189)/4=0,366,365)))*H189),2) -> 3392.22 | L189: 0 | V189: х | W189: х
A190: 1 | B190: =B189+1 -> 148 | D190: =D189+1 -> 149 | E190: 2034-03-12 | F190: 28 | G190: 16 | H190: 12 | I190: 6531.34 | J190: =IF(B190<$K$12,$L$14,-$J$41-SUM($J$43:J189)) -> 3500 | K190: =ROUND(($K$11-SUM($J$43:J189))*(($K$19/(IF(ROUND(YEAR(E189)/4,0)-YEAR(E189)/4=0,366,365)))*G190)+($K$11-SUM($J$43:J189))*(($K$19/(IF(ROUND(YEAR(E190)/4,0)-YEAR(E190)/4=0,366,365)))*H190),2) -> 3031.34 | L190: 0 | V190: х | W190: х
A191: 1 | B191: =B190+1 -> 149 | D191: =D190+1 -> 150 | E191: 2034-04-12 | F191: 31 | G191: 19 | H191: 12 | I191: 6820.04 | J191: =IF(B191<$K$12,$L$14,-$J$41-SUM($J$43:J190)) -> 3500 | K191: =ROUND(($K$11-SUM($J$43:J190))*(($K$19/(IF(ROUND(YEAR(E190)/4,0)-YEAR(E190)/4=0,366,365)))*G191)+($K$11-SUM($J$43:J190))*(($K$19/(IF(ROUND(YEAR(E191)/4,0)-YEAR(E191)/4=0,366,365)))*H191),2) -> 3320.04 | L191: 0 | V191: х | W191: х
A192: 1 | B192: =B191+1 -> 150 | D192: =D191+1 -> 151 | E192: 2034-05-12 | F192: 30 | G192: 18 | H192: 12 | I192: 6678.02 | J192: =IF(B192<$K$12,$L$14,-$J$41-SUM($J$43:J191)) -> 3500 | K192: =ROUND(($K$11-SUM($J$43:J191))*(($K$19/(IF(ROUND(YEAR(E191)/4,0)-YEAR(E191)/4=0,366,365)))*G192)+($K$11-SUM($J$43:J191))*(($K$19/(IF(ROUND(YEAR(E192)/4,0)-YEAR(E192)/4=0,366,365)))*H192),2) -> 3178.02 | L192: 0 | V192: х | W192: х
A193: 1 | B193: =B192+1 -> 151 | D193: =D192+1 -> 152 | E193: 2034-06-12 | F193: 31 | G193: 19 | H193: 12 | I193: 6747.87 | J193: =IF(B193<$K$12,$L$14,-$J$41-SUM($J$43:J192)) -> 3500 | K193: =ROUND(($K$11-SUM($J$43:J192))*(($K$19/(IF(ROUND(YEAR(E192)/4,0)-YEAR(E192)/4=0,366,365)))*G193)+($K$11-SUM($J$43:J192))*(($K$19/(IF(ROUND(YEAR(E193)/4,0)-YEAR(E193)/4=0,366,365)))*H193),2) -> 3247.87 | L193: 0 | V193: х | W193: х
A194: 1 | B194: =B193+1 -> 152 | D194: =D193+1 -> 153 | E194: 2034-07-12 | F194: 30 | G194: 18 | H194: 12 | I194: 6608.17 | J194: =IF(B194<$K$12,$L$14,-$J$41-SUM($J$43:J193)) -> 3500 | K194: =ROUND(($K$11-SUM($J$43:J193))*(($K$19/(IF(ROUND(YEAR(E193)/4,0)-YEAR(E193)/4=0,366,365)))*G194)+($K$11-SUM($J$43:J193))*(($K$19/(IF(ROUND(YEAR(E194)/4,0)-YEAR(E194)/4=0,366,365)))*H194),2) -> 3108.17 | L194: 0 | V194: х | W194: х
A195: 1 | B195: =B194+1 -> 153 | D195: =D194+1 -> 154 | E195: 2034-08-12 | F195: 31 | G195: 19 | H195: 12 | I195: 6675.69 | J195: =IF(B195<$K$12,$L$14,-$J$41-SUM($J$43:J194)) -> 3500 | K195: =ROUND(($K$11-SUM($J$43:J194))*(($K$19/(IF(ROUND(YEAR(E194)/4,0)-YEAR(E194)/4=0,366,365)))*G195)+($K$11-SUM($J$43:J194))*(($K$19/(IF(ROUND(YEAR(E195)/4,0)-YEAR(E195)/4=0,366,365)))*H195),2) -> 3175.69 | L195: 0 | V195: х | W195: х
A196: 1 | B196: =B195+1 -> 154 | D196: =D195+1 -> 155 | E196: 2034-09-12 | F196: 31 | G196: 19 | H196: 12 | I196: 6639.6 | J196: =IF(B196<$K$12,$L$14,-$J$41-SUM($J$43:J195)) -> 3500 | K196: =ROUND(($K$11-SUM($J$43:J195))*(($K$19/(IF(ROUND(YEAR(E195)/4,0)-YEAR(E195)/4=0,366,365)))*G196)+($K$11-SUM($J$43:J195))*(($K$19/(IF(ROUND(YEAR(E196)/4,0)-YEAR(E196)/4=0,366,365)))*H196),2) -> 3139.6 | L196: 0 | V196: х | W196: х
A197: 1 | B197: =B196+1 -> 155 | D197: =D196+1 -> 156 | E197: 2034-10-12 | F197: 30 | G197: 18 | H197: 12 | I197: 6503.4 | J197: =IF(B197<$K$12,$L$14,-$J$41-SUM($J$43:J196)) -> 3500 | K197: =ROUND(($K$11-SUM($J$43:J196))*(($K$19/(IF(ROUND(YEAR(E196)/4,0)-YEAR(E196)/4=0,366,365)))*G197)+($K$11-SUM($J$43:J196))*(($K$19/(IF(ROUND(YEAR(E197)/4,0)-YEAR(E197)/4=0,366,365)))*H197),2) -> 3003.4 | L197: 0 | V197: х | W197: х
A198: 1 | B198: =B197+1 -> 156 | D198: =D197+1 -> 157 | E198: 2034-11-12 | F198: 31 | G198: 19 | H198: 12 | I198: 11952.43 | J198: =IF(B198<$K$12,$L$14,-$J$41-SUM($J$43:J197)) -> 3500 | K198: =ROUND(($K$11-SUM($J$43:J197))*(($K$19/(IF(ROUND(YEAR(E197)/4,0)-YEAR(E197)/4=0,366,365)))*G198)+($K$11-SUM($J$43:J197))*(($K$19/(IF(ROUND(YEAR(E198)/4,0)-YEAR(E198)/4=0,366,365)))*H198),2) -> 3067.43 | L198: 0 | O198: =IF(B198<$K$12,$K$11*$K$24,0) -> 0 | T198: =IF(B198<$K$12,$K$9*$K$27,0)+(-SUM(J41:J197)*K28) -> 5385 | V198: х | W198: х
A199: 1 | B199: =B198+1 -> 157 | D199: =D198+1 -> 158 | E199: 2034-12-12 | F199: 30 | G199: 18 | H199: 12 | I199: 6433.56 | J199: =IF(B199<$K$12,$L$14,-$J$41-SUM($J$43:J198)) -> 3500 | K199: =ROUND(($K$11-SUM($J$43:J198))*(($K$19/(IF(ROUND(YEAR(E198)/4,0)-YEAR(E198)/4=0,366,365)))*G199)+($K$11-SUM($J$43:J198))*(($K$19/(IF(ROUND(YEAR(E199)/4,0)-YEAR(E199)/4=0,366,365)))*H199),2) -> 2933.56 | L199: 0 | V199: х | W199: х
A200: 1 | B200: =B199+1 -> 158 | D200: =D199+1 -> 159 | E200: 2035-01-12 | F200: 31 | G200: 19 | H200: 12 | I200: 6495.25 | J200: =IF(B200<$K$12,$L$14,-$J$41-SUM($J$43:J199)) -> 3500 | K200: =ROUND(($K$11-SUM($J$43:J199))*(($K$19/(IF(ROUND(YEAR(E199)/4,0)-YEAR(E199)/4=0,366,365)))*G200)+($K$11-SUM($J$43:J199))*(($K$19/(IF(ROUND(YEAR(E200)/4,0)-YEAR(E200)/4=0,366,365)))*H200),2) -> 2995.25 | L200: 0 | V200: х | W200: х
A201: 1 | B201: =B200+1 -> 159 | D201: =D200+1 -> 160 | E201: 2035-02-12 | F201: 31 | G201: 19 | H201: 12 | I201: 6459.17 | J201: =IF(B201<$K$12,$L$14,-$J$41-SUM($J$43:J200)) -> 3500 | K201: =ROUND(($K$11-SUM($J$43:J200))*(($K$19/(IF(ROUND(YEAR(E200)/4,0)-YEAR(E200)/4=0,366,365)))*G201)+($K$11-SUM($J$43:J200))*(($K$19/(IF(ROUND(YEAR(E201)/4,0)-YEAR(E201)/4=0,366,365)))*H201),2) -> 2959.17 | L201: 0 | V201: х | W201: х
A202: 1 | B202: =B201+1 -> 160 | D202: =D201+1 -> 161 | E202: 2035-03-12 | F202: 28 | G202: 16 | H202: 12 | I202: 6140.2 | J202: =IF(B202<$K$12,$L$14,-$J$41-SUM($J$43:J201)) -> 3500 | K202: =ROUND(($K$11-SUM($J$43:J201))*(($K$19/(IF(ROUND(YEAR(E201)/4,0)-YEAR(E201)/4=0,366,365)))*G202)+($K$11-SUM($J$43:J201))*(($K$19/(IF(ROUND(YEAR(E202)/4,0)-YEAR(E202)/4=0,366,365)))*H202),2) -> 2640.2 | L202: 0 | V202: х | W202: х
A203: 1 | B203: =B202+1 -> 161 | D203: =D202+1 -> 162 | E203: 2035-04-12 | F203: 31 | G203: 19 | H203: 12 | I203: 6386.99 | J203: =IF(B203<$K$12,$L$14,-$J$41-SUM($J$43:J202)) -> 3500 | K203: =ROUND(($K$11-SUM($J$43:J202))*(($K$19/(IF(ROUND(YEAR(E202)/4,0)-YEAR(E202)/4=0,366,365)))*G203)+($K$11-SUM($J$43:J202))*(($K$19/(IF(ROUND(YEAR(E203)/4,0)-YEAR(E203)/4=0,366,365)))*H203),2) -> 2886.99 | L203: 0 | V203: х | W203: х
A204: 1 | B204: =B203+1 -> 162 | D204: =D203+1 -> 163 | E204: 2035-05-12 | F204: 30 | G204: 18 | H204: 12 | I204: 6258.94 | J204: =IF(B204<$K$12,$L$14,-$J$41-SUM($J$43:J203)) -> 3500 | K204: =ROUND(($K$11-SUM($J$43:J203))*(($K$19/(IF(ROUND(YEAR(E203)/4,0)-YEAR(E203)/4=0,366,365)))*G204)+($K$11-SUM($J$43:J203))*(($K$19/(IF(ROUND(YEAR(E204)/4,0)-YEAR(E204)/4=0,366,365)))*H204),2) -> 2758.94 | L204: 0 | V204: х | W204: х
A205: 1 | B205: =B204+1 -> 163 | D205: =D204+1 -> 164 | E205: 2035-06-12 | F205: 31 | G205: 19 | H205: 12 | I205: 6314.82 | J205: =IF(B205<$K$12,$L$14,-$J$41-SUM($J$43:J204)) -> 3500 | K205: =ROUND(($K$11-SUM($J$43:J204))*(($K$19/(IF(ROUND(YEAR(E204)/4,0)-YEAR(E204)/4=0,366,365)))*G205)+($K$11-SUM($J$43:J204))*(($K$19/(IF(ROUND(YEAR(E205)/4,0)-YEAR(E205)/4=0,366,365)))*H205),2) -> 2814.82 | L205: 0 | V205: х | W205: х
A206: 1 | B206: =B205+1 -> 164 | D206: =D205+1 -> 165 | E206: 2035-07-12 | F206: 30 | G206: 18 | H206: 12 | I206: 6189.09 | J206: =IF(B206<$K$12,$L$14,-$J$41-SUM($J$43:J205)) -> 3500 | K206: =ROUND(($K$11-SUM($J$43:J205))*(($K$19/(IF(ROUND(YEAR(E205)/4,0)-YEAR(E205)/4=0,366,365)))*G206)+($K$11-SUM($J$43:J205))*(($K$19/(IF(ROUND(YEAR(E206)/4,0)-YEAR(E206)/4=0,366,365)))*H206),2) -> 2689.09 | L206: 0 | V206: х | W206: х
A207: 1 | B207: =B206+1 -> 165 | D207: =D206+1 -> 166 | E207: 2035-08-12 | F207: 31 | G207: 19 | H207: 12 | I207: 6242.64 | J207: =IF(B207<$K$12,$L$14,-$J$41-SUM($J$43:J206)) -> 3500 | K207: =ROUND(($K$11-SUM($J$43:J206))*(($K$19/(IF(ROUND(YEAR(E206)/4,0)-YEAR(E206)/4=0,366,365)))*G207)+($K$11-SUM($J$43:J206))*(($K$19/(IF(ROUND(YEAR(E207)/4,0)-YEAR(E207)/4=0,366,365)))*H207),2) -> 2742.64 | L207: 0 | V207: х | W207: х
... 87 more rows
